Workbook

Sheet от 1года до 3 лет
A2: Утверждаю | H2: Согласовано
A3: Директор ООО "ФУДСОЦСЕРВИС" | H3: Руководитель дошкольной образовательной
A4: Харламова Э.Р. | H4: организации
E6: Примерное 10-дневное меню
E7: для организации питания детей в дошкольных учреждениях
E8: с 12 - часовым пребыванием от 1 года до 3 лет
A10: День 1 - ый
A11: Наименование блюд и | C11: Масса | D11: Кол - во | E11: Кол - во | F11: Пищевые вещества | I11: Энергетическая | J11: витамин | K11: Сборник
A12: продуктов | C12: порции | D12: (в гр ) | E12: (в гр ) | I12: ценность | K12: рецептур
D13: брутто | E13: нетто | F13: белки | G13: жиры | H13: угл-ды | I13: Ккал | J13: С
A15: Каша "Дружба" молочная с маслом сливочным | C15: 140/3 | F15: 4.22 | G15: 4.92 | H15: 23.38 | I15: 155.56 | J15: 0.67 | K15: ТТК №7Д
B16: Крупа рисовая | D16: 10 | E16: 10
B17: Крупа пшенная | D17: 7.5 | E17: 7.5
B18: Молоко | D18: 75 | E18: 75
B19: Вода | D19: 48 | E19: 48
B20: Сахар | D20: 2 | E20: 2
B21: соль иодированная | D21: 0.4 | E21: 0.4
B22: Масло сливочное | D22: 3 | E22: 3
A23: Кофейный напиток с молоком | C23: 180/6 | F23: 2.85 | G23: 2.41 | H23: 14.35 | I23: 90.54 | J23: 1.17 | K23: №395Дели2010
B24: Кофейный напиток | D24: 2.5 | E24: 2.5
B25: Сахар | D25: 6 | E25: 6
B26: Молоко | D26: 90 | E26: 90
B27: Вода | D27: 108 | E27: 108
A28: Бутерброд с маслом сливочным | C28: 25/5 | F28: 1.92 | G28: 4.36 | H28: 12.92 | I28: 98.50 | K28: №1 Дели2010
B29: Батон нарезной | D29: 25 | E29: 25
B30: Масло сливочное | D30: 5 | E30: 5
A31: Итого: | C31: 359 | F31: 8.79 | G31: 9.78 | H31: =H23+H23+H28 -> 41.62 | I31: =I23+I28+I23 -> 279.58 | J31: =SUM(J15:J30) -> 1.84
B32: 2 - ой ЗАВТРАК
A33: Фрукты свежие | C33: 100 | D33: 100 | E33: 100 | F33: 0.40 | G33: 0.40 | H33: 9.80 | I33: 47.00 | J33: 10.00 | K33: №386 СБ
A34: Итого: | C34: 100 | F34: =F33 -> 0.40 | G34: =G33 -> 0.40 | H34: =H33 -> 9.80 | I34: =I33 -> 47.00 | J34: =J33 -> 10.00
B35: ОБЕД
A36: Салат припущенной из моркови с яблоками | C36: 40 | F36: 0.42 | G36: 0.07 | H36: 3.41 | I36: 15.96 | J36: 1.75 | K36: №41 СБ дошк. 2016
B37: морковь | D37: 38.12 | E37: 30.50
B38: яблоки | D38: 11.40 | E38: 10.00
B39: масло растительное | D39: 2.00 | E39: 2.00
A40: Суп вермишелевый с картофелем с куриными фрикадельками | C40: 150/10 | F40: 3.49 | G40: 2.86 | H40: 10.47 | I40: 88.11 | J40: 5.05 | K40: №83 СБ дошк 2016
B41: цыплята - бройлеры с/м | D41: 17.5 | E41: 11.4
B42: или фарш куриный | D42: 11.97 | E42: 11.4
B43: Лук репчатый | D43: 1.19 | E43: 1
B44: Яйцо | D44: 0.96 | E44: 0.8
B45: Вода для фарша | D45: 1 | E45: 1
B46: соль иодированная | D46: 0.1 | E46: 0.1
B47: масса полуфабриката фрикаделек | E47: 14.3
B48: масса готовых фрикаделек | E48: 10
B49: вермишель | D49: 6 | E49: 6
B50: Картофель | D50: 60.00 | E50: 45.00
B51: Морковь | D51: 7.50 | E51: 6.00
B52: Лук репчатый | D52: 7.14 | E52: 6.00
B53: Масло растительное | D53: 1.50 | E53: 1.50
B54: соль иодированная | D54: 0.50 | E54: 0.50
B55: Вода | D55: 105.00 | E55: 105.00
A56: Котлеты рубленые из индейки | C56: 50 | F56: 8.35 | G56: 9.68 | H56: 8.22 | I56: 154.00 | J56: 0.09 | K56: СБ дошкольн. №322, 2016
B57: филе грудок индейки | D57: 36.5 | E57: 36.5
B58: Хлеб пшеничный | D58: 9.3 | E58: 9.3
B59: Вода | D59: 13.6 | E59: 13.6
B60: соль иодированная | D60: 0.5 | E60: 0.5
B61: яйцо | D61: 0.6 | E61: 0.5
B62: Сухари панировочные | D62: 5 | E62: 5
B63: масса полуфабриката | E63: 62.5
B64: масло растительное | D64: 1.70 | E64: 1.70
A65: Каша гречневая вязкая с маслом сливочным | C65: 110/2 | F65: 3.37 | G65: 5.12 | H65: 15.08 | I65: 119.90 | K65: № 303 сб шк 2017
B66: Крупа гречневая | D66: 27.5 | E66: 27.5
B67: Вода | D67: 88 | E67: 88
B68: Масло сливочное | D68: 2 | E68: 2
B69: соль иодированная | D69: 0.28 | E69: 0.28
A70: Напиток из сухофруктов | C70: 150 | F70: 0.50 | G70: 0.07 | H70: 24.01 | I70: 100 | J70: 0.54 | K70: №394 Сб дошк 2016
B71: сухофрукты | D71: 12.75 | E71: 12.50
B72: Сахар | D72: 5.00 | E72: 5.00
B73: вода | D73: 152.00 | E73: 152.00
A74: Хлеб пшеничный | C74: 15 | D74: 15.00 | E74: 15.00 | F74: 1.14 | G74: 0.12 | H74: 7.38 | I74: 35 | J74: 0 | K74: табл 6 стр 134,Дели + 2012
A75: Хлеб ржаной | C75: 35 | D75: 35 | E75: 35 | F75: 2.31 | G75: 0.42 | H75: 13.85 | I75: 69.23 | K75: табл 6 стр 144,Дели + 2012
A76: Итого: | C76: 562.00 | F76: 15.43 | G76: =G36+G56+G65+G70+G74+G75+G75 -> 15.90 | H76: =H36+H40+H65+H70+H74+H75 -> 74.19 | I76: =I36+I40+I56+I65+I70+I74 -> 512.82 | J76: =J36+J40+J56+J65+J70+J74+J75 -> 7.43
B77: ПОЛДНИК
A78: Кисломолочный напиток | C78: 150 | F78: 4.35 | G78: 3.75 | H78: 6.00 | I78: 75.00 | J78: 1.05 | K78: №420 Сб дошк 2016
A79: (Кефир,ряженка,катык,напиток ацидофильный/йогурт) | B79: кисломолочный напиток | D79: 155 | E79: 150
A80: Кондитерское изделие | B80: вафли | C80: 20 | D80: 20.00 | E80: 20.00 | F80: 3.28 | G80: 6.10 | H80: 45.84 | I80: 249.00 | K80: табл 6 стр 136,Ддели +,2012
A81: Итого: | C81: 170 | F81: 5.99 | G81: =G78+G80 -> 9.85 | H81: 51.84 | I81: 324.00 | J81: 1.05
B82: УЖИН
A83: Котлеты рыбные | C83: 50 | F83: 6.10 | G83: 3.88 | H83: 7.33 | I83: 89.00 | J83: 0.16 | K83: №271 СБ дошк 2016
B84: рыба (минтай с/м БГ) | D84: 45.22 | E84: 33
B85: соль иодированная | D85: 0.5 | E85: 0.5
B86: хлеб пшеничный | D86: 9 | E86: 9
B87: молоко | D87: 12.60 | E87: 12.60
B88: сухари панировочные | D88: 5.00 | E88: 5.00
B89: масса полуфабриката | E89: 58.00
B90: масло растительное | D90: 2.00 | E90: 2.00
A91: Пюре Картофельное | C91: 120 | F91: 2.45 | G91: 3.84 | H91: 16.35 | I91: 109.80 | J91: 14.53 | K91: № 339 СБ дошк 2016
B92: Картофель | D92: 136.80 | E92: 102.60
B93: Молоко | D93: 18.96 | E93: 18.00
B94: Масло сливочное | D94: 4.20 | E94: 4.20
B95: соль иодированная | D95: 0.45 | E95: 0.45
A96: Чай с сахаром | C96: 150/5 | F96: 0.05 | G96: 0.02 | H96: 5.02 | I96: 20.08 | J96: 0.02 | K96: №392 Дели2010
B97: чай весовой | D97: 0.4 | E97: 0.4
B98: Сахар | D98: 5 | E98: 5
B99: Вода | D99: 150 | E99: 150
A100: Хлеб пшеничный | C100: 20 | D100: 20.00 | E100: 20.00 | F100: 1.52 | G100: 0.16 | H100: 9.84 | I100: 47.00 | J100: 0.00 | K100: табл 6 стр 134,Дели + 2012
A101: Итого: | C101: 345.00 | F101: =SUM(F82:F100) -> 10.12 | G101: =G83+G91+G96+G100+G91 -> 11.74 | H101: =H83+H91+H96+H100+H100 -> 48.38 | I101: =I83+I91+I96+I100+I83 -> 354.88 | J101: =SUM(J82:J100) -> 14.71
A102: ВСЕГО: | C102: =C31+C34+C76+C81+C101 -> 1536.00 | F102: =F31+F34+F76+F81+F101 -> 40.73 | G102: =G31+G34+G76+G81+G101 -> 47.66 | H102: =H31+H34+H76+H81+H101 -> 225.83 | I102: =I31+I34+I76+I81+I101 -> 1518.28 | J102: =J31+J34+J76+J81+J101 -> 35.03
A104: День 2- ой
A105: Наименование блюд и | C105: Масса | D105: Кол - во | E105: Кол - во | F105: Пищевые вещества | I105: Энергетическая | J105: Витамин | K105: Сборник
A106: продуктов | C106: порции | D106: (в гр ) | E106: (в гр ) | I106: ценность | K106: рецептур
D107: брутто | E107: нетто | F107: белки | G107: жиры | H107: угл-ды | I107: Ккал | J107: С
B108: ЗАВТРАК
A109: Каша полбяная молочная с маслом сливочным | C109: 140/3 | F109: 3.76 | G109: 6.13 | H109: 22.96 | I109: 162.00 | K109: ТТК №1Д
B110: Крупа полбяная | D110: 18 | E110: 18
B111: Молоко | D111: 75 | E111: 75
B112: вода | D112: 48 | E112: 48
B113: Сахар | D113: 2 | E113: 2
B114: соль иодированная | D114: 0.4 | E114: 0.4
B115: Масло сливочное | D115: 3 | E115: 3
A116: Какао с молоком | C116: 180/6 | F116: 3.67 | G116: 3.19 | H116: 15.82 | I116: 106.74 | J116: 1.43 | K116: №397 Дели2010
B117: Какао-порошок | D117: 2 | E117: 2
B118: Сахар | D118: 6 | E118: 6
B119: Молоко | D119: 110 | E119: 110
B120: Вода | D120: 80 | E120: 80
A121: Бутерброд с сыром, маслом сливочным | C121: 25/5/5 | F121: 3.23 | G121: 5.69 | H121: 12.92 | I121: 115.67 | J121: 0.04 | K121: №3 сб дошк2016
B122: Батон нарезной | D122: 25 | E122: 25
B123: Сыр | D123: 5.1 | E123: 5
B124: Масло сливочное | D124: 5 | E124: 5
A125: Итого: | C125: 364 | F125: 8.19 | G125: =G109+G116 -> 9.32 | H125: =H109+H116 -> 38.78 | I125: =I109+I121 -> 277.67 | J125: =J109+J116+J121 -> 1.47
B126: 2 - ой ЗАВТРАК
A127: Сок | C127: 125 | D127: 125 | E127: 125 | F127: 1.99 | G127: 2.40 | H127: 10.63 | I127: 68.00 | J127: 2.50
A128: Итого: | C128: 125 | F128: =F127 -> 1.99 | G128: =G127 -> 2.40 | H128: 10.63 | I128: 68.00 | J128: 2.50
B129: ОБЕД
A130: Салат из картофеля с солеными огурцами | C130: 40 | F130: 0.49 | G130: 3.14 | H130: 3.58 | I130: 44.56 | J130: 2.41 | K130: №23 сб дошк2016
B131: огурцы соленые | D131: 21.84 | E131: 12.00
B132: картофель | D132: 21.92 | E132: 16.00
B133: морковь | D133: 10.24 | E133: 8.00
B134: лук репчатый | D134: 2.40 | E134: 2.00
B135: масло растительное | D135: 2.00 | E135: 2.00
A136: Борщ со свежей капустой, картофелем на курином бульоне, с куриными фрикадельками,со сметаной | C136: 150/10/7 | F136: 2.66 | G136: 5.26 | H136: 7.69 | I136: 94.08 | J136: 6.43 | K136: №110,сбшк2004
B137: цыплята - бройлеры с/м | D137: 17.56 | E137: 11.4
B138: или фарш куриный | D138: 11.97 | E138: 11.4
B139: Лук репчатый | D139: 1.2 | E139: 1
B140: Яйцо | D140: 0.96 | E140: 0.8
B141: Вода для фарша | D141: 1 | E141: 1
B142: соль иодированная | D142: 0.1 | E142: 0.1
B143: Масса полуфабриката | E143: 14.3
B144: масса готовых фрикаделек | E144: 10
B145: Капуста свежая | D145: 15.0 | E145: 12.0
B146: Картофель | D146: 15.96 | E146: 12.0
B147: Морковь | D147: 7.5 | E147: 6.0
B148: Лук репчатый | D148: 7.14 | E148: 6.0
B149: Свекла | D149: 30.72 | E149: 24.0
B150: Сахар | D150: 1.8 | E150: 1.8
B151: Масло растительное | D151: 3.0 | E151: 3.0
B152: соль иодированная | D152: 0.5 | E152: 0.5
B153: Бульон | D153: 120 | E153: 120.0
B154: Сметана | D154: 7.0 | E154: 7.0
B155: Томатная паста | D155: 0.8 | E155: 0.8
A156: Фрикадельки куриные в молочном соусе | C156: 40/20 | F156: 5.99 | G156: 7.13 | H156: 5.16 | I156: 109.04 | J156: 0.47 | K156: № 305 сб дошк 2016
B157: цыплята - бройлеры с/м | D157: 45.6 | E157: 29.3
B158: или фарш куриный | D158: 30.8 | E158: 29.3
B159: Хлеб пшеничный | D159: 7.3 | E159: 7.3
B160: Вода | D160: 9.0 | E160: 9.0
B161: соль иодированная | D161: 0.3 | E161: 0.3
B162: Масса полуфабриката | E162: 46.0
B163: Масло растительное | D163: 0.6 | E163: 0.6
B164: Соус молочный: | E164: 20.0
B165: Молоко | D165: 10.0 | E165: 10.0
B166: Масло сливочное | D166: 1.0 | E166: 1.0
B167: Мука пшеничная | D167: 1.0 | E167: 1.0
B168: Вода | D168: 10.0 | E168: 10.0
B169: Сахар | D169: 0.2 | E169: 0.2
B170: соль иодированная | D170: 0.2 | E170: 0.2
A171: Макаронные изделия отварные с маслом сливочным | C171: 110/3 | F171: 4.17 | G171: 2.66 | H171: 23.45 | I171: 134.38 | K171: №219 Сб дошк.2016
B172: макаронные изделия | D172: 38.5 | E172: 38.5
B173: вода | D173: 231.0 | E173: 231.0
B174: соль иодированная | D174: 0.45 | E174: 0.45
B175: масло сливочное | D175: 3.0 | E175: 3.0
A176: Компот из яблок | C176: 150 | F176: 0.12 | G176: 0.12 | H176: 20.91 | I176: 85.95 | J176: 0.68 | K176: 342 сб шк 2017
B177: яблоки свежие | D177: 27.4 | E177: 24
B178: сахар | D178: 5 | E178: 5
B179: вода | D179: 153 | E179: 153
A180: Хлеб пшеничный | C180: 20 | D180: 20 | E180: 20 | F180: 1.52 | G180: 0.16 | H180: 9.84 | I180: 47.00 | J180: 0.00 | K180: табл 6 стр 134,Дели + 2012
A181: Хлеб ржаной | C181: 35 | D181: 35 | E181: 35 | F181: 2.31 | G181: 0.42 | H181: 13.86 | I181: 69.30 | K181: табл 6 стр 144,Дели + 2012
A182: Итого: | C182: 585 | F182: =F130+F136+F156+F171+F176+F180 -> 14.95 | G182: =G130+G136+G156+G180+G181 -> 16.11 | H182: =H130+H136+H156+H171+H176+H180 -> 70.63 | I182: =I130+I136+I156+I171+I176 -> 468.01 | J182: =J130+J136+J156+J171+J176+J180+J181 -> 9.99
B183: ПОЛДНИК
A184: Кисломолочный напиток | C184: 150 | F184: 4.35 | G184: 3.75 | H184: 6.30 | I184: 76.50 | J184: 0.45 | K184: №420 Сб дошк 2016
A185: (кефир,ряженка,катык,напиток ацидофильный/йогурт) | B185: кисломолочный напиток | D185: 155 | E185: 150
A186: Булочка дорожная | C186: 35 | F186: 2.37 | G186: 2.94 | H186: 14.75 | I186: 112.35 | K186: №453 сб дошк2016
B187: Мука пшеничная | D187: 21.35 | E187: 21.00
B188: мука пшеничная на подпыл | D188: 0.70 | E188: 0.70
B189: Сахар | D189: 4.20 | E189: 4.20
B190: Масло сливочное | D190: 4.55 | E190: 4.55
B191: соль иодированная | D191: 0.21 | E191: 0.21
B192: дрожжи сухие | D192: 0.14 | E192: 0.14
B193: вода | D193: 10.70 | E193: 10.70
B194: масса полуфабриката | E194: 39.90
B195: для крошки:
B196: мука пшеничная | D196: 0.84 | E196: 0.84
B197: масло сливочное | D197: 0.70 | E197: 0.70
B198: масса крошки | E198: 1.40
B199: масло растительное для смазки изделй | D199: 0.70 | E199: 0.70
A200: Итого: | C200: 185 | F200: 6.60 | G200: =G184+G186 -> 6.69 | H200: =H186+H186 -> 29.50 | I200: 199.85 | J200: =J184+J186 -> 0.45
B201: УЖИН
A202: Запеканка творожная с ягодным соусом | C202: 100/30 | F202: 10.92 | G202: 12.11 | H202: 47.10 | I202: 345.50 | J202: 1.83 | K202: № 251 сб дошк 2016
B203: Творог | D203: 92.9 | E203: 91.1
B204: крупа манная | D204: 6 | E204: 6
B205: Яйцо | D205: 4.8 | E205: 4
... 821 more rows

Sheet от 3 до 7 лет
A2: Утверждаю | H2: Согласовано
A3: Директор ООО"ФУДСОЦСЕРВИС" | H3: Руководитель дошкольной образовательной
A4: Харламова Э.Р. | H4: организации
C6: Примерное 10-дневное меню
C7: для организации питания детей в дошкольных учреждениях
C8: с 12 - часовым пребыванием от 3 до 7 лет
A10: День 1 - ый
A11: Наименование блюд и | C11: Масса | D11: Кол - во | E11: Кол - во | F11: Пищевые вещества | I11: Энергетическая | J11: Витамин | K11: Сборник рецептур
A12: продуктов | C12: порции | D12: (в гр ) | E12: (в гр ) | I12: ценность
D13: брутто | E13: нетто | F13: белки | G13: жиры | H13: угл-ды | I13: Ккал | J13: С
B14: ЗАВТРАК
A15: Каша "Дружба" молочная с маслом сливочным | C15: 180/5 | F15: 5.44 | G15: 7.17 | H15: 30.09 | I15: 207.60 | J15: 0.86 | K15: ТТК №7Д
B16: Крупа рисовая | D16: 13.50 | E16: 13.50
B17: Крупа пшенная | D17: 10.00 | E17: 10.00
B18: Молоко | D18: 90.00 | E18: 90.00
B19: Вода | D19: 68.00 | E19: 68.00
B20: Сахар | D20: 2.50 | E20: 2.50
B21: соль иодированная | D21: 0.50 | E21: 0.50
B22: Масло сливочное | D22: 5 | E22: 5
A23: Кофейный напиток с молоком | C23: 180/6 | F23: 2.85 | G23: 2.41 | H23: 14.35 | I23: 90.54 | J23: 1.17 | K23: №395 Дели2010
B24: Кофейный напиток | D24: 2.50 | E24: 2.50
B25: Сахар | D25: 6.00 | E25: 6.00
B26: Молоко | D26: 90.00 | E26: 90.00
B27: Вода | D27: 108.00 | E27: 108.00
A28: Бутерброд с маслом сливочным | C28: 30/5 | F28: 2.29 | G28: 4.50 | H28: 15.49 | I28: 111.60 | K28: №1 Дели2010
B29: Батон нарезной | D29: 30.00 | E29: 30.00
B30: Масло сливочное | D30: 5.00 | E30: 5.00
A31: Итого: | C31: 406 | F31: =SUM(F14:F30) -> 10.58 | G31: 12.50 | H31: 54.79 | I31: 376.19 | J31: =SUM(J14:J30) -> 2.03
B32: 2 - ой ЗАВТРАК
A33: Фрукты свежие | C33: 100 | D33: 100 | E33: 100 | F33: 0.40 | G33: 0.40 | H33: 9.80 | I33: 47.00 | J33: 10.00 | K33: №386 СБ
A34: (яблоки,или апельсин, или банан,или мандарин ) | K34: дошк.2016
A35: Итого: | C35: 100 | F35: =F33 -> 0.40 | G35: =G33 -> 0.40 | H35: 9.80 | I35: 47.00 | J35: 10.00
B36: ОБЕД
A37: Салат из припущенной моркови с яблоками | C37: 60 | F37: 0.64 | G37: 0.10 | H37: 5.11 | I37: 23.94 | J37: 2.63 | K37: №41 СБ дошк. 2016
B38: морковь | D38: 57.25 | E38: 45.80
B39: яблоки | D39: 17.10 | E39: 15.00
B40: масло растительное | D40: 3.00 | E40: 3.00
A41: Суп вермишелевый с картофелем с куриными фрикадельками | C41: 180/15 | F41: 3.79 | G41: 3.87 | H41: 13.64 | I41: 112.33 | J41: 6.17 | K41: №88,сб дошк2016
B42: цыплята - бройлеры с/м | D42: 26.3 | E42: 17.1
B43: или фарш куриный | D43: 17.95 | E43: 17.1
B44: Лук репчатый | D44: 1.79 | E44: 1.5
B45: Яйцо | D45: 1.44 | E45: 1.2
B46: Вода для фарша | D46: 1.5 | E46: 1.5
B47: соль иодированная | D47: 0.15 | E47: 0.15
B48: Масса полуфабриката | E48: 21.5
B49: масса готовых фрикаделек | E49: 15
B50: Картофель | D50: 79.80 | E50: 60.00
B51: Морковь | D51: 10.00 | E51: 8.00
B52: Лук репчатый | D52: 9.52 | E52: 8.00
B53: вермишель | D53: 8.00 | E53: 8.00
B54: Масло растительное | D54: 2.00 | E54: 2.00
B55: соль иодированная | D55: 0.70 | E55: 0.70
B56: Вода | D56: 132.00 | E56: 132.00
A57: Котлеты рубленые из индейки | C57: 70 | F57: 11.69 | G57: 13.55 | H57: 11.51 | I57: 215.60 | J57: 0.13 | K57: СБ дошкольн. №322, 2016
B58: филе грудок индейки | D58: 51.4 | E58: 51.4
B59: Хлеб пшеничный | D59: 12.9 | E59: 12.9
B60: Вода | D60: 18.6 | E60: 18.6
B61: соль иодированная | D61: 0.7 | E61: 0.7
B62: яйцо | D62: 0.84 | E62: 0.7
B63: Сухари панировочные | D63: 7.00 | E63: 7.00
B64: масса полуфабриката | E64: 87.5
B65: масло растительное | D65: 2.4 | E65: 2.4
A66: Каша гречневая вязкая с маслом сливочным | C66: 130/3 | F66: 3.99 | G66: 6.51 | H66: 17.82 | I66: 145.86 | K66: № 303 сб шк 2017
B67: Крупа гречневая | D67: 32.50 | E67: 32.50
B68: Вода | D68: 104.00 | E68: 104.00
B69: Масло сливочное | D69: 3.00 | E69: 3.00
B70: соль иодированная | D70: 0.30 | E70: 0.30
A71: Напиток из сухофруктов | C71: 180 | F71: 0.60 | G71: 0.08 | H71: 28.81 | I71: 119.52 | J71: 0.65 | K71: №394 Сб дошк 2016
B72: сухофрукты | D72: 15.30 | E72: 15.00
B73: Сахар | D73: 6.00 | E73: 6.00
B74: вода | D74: 183.00 | E74: 183.00
A75: Хлеб пшеничный | C75: 25 | D75: 25.00 | E75: 25.00 | F75: 1.90 | G75: 0.20 | H75: 12.30 | I75: 58.75 | J75: 0.00 | K75: табл 6 стр 134,Дели + 2012
A76: Хлеб ржаной | C76: 45 | D76: 45.00 | E76: 45.00 | F76: 2.97 | G76: 0.54 | H76: 17.82 | I76: 89.10 | K76: табл 6 стр 144,Дели + 2012
A77: Итого: | C77: 708 | F77: =F41+F57+F66 -> 19.47 | G77: =G37+G57+G66+G71+G75+G76 -> 20.99 | H77: =H37+H41+H57+H66+H71+H75 -> 89.20 | I77: 661.25 | J77: =J37+J41+J57+J66+J71+J75+J76 -> 9.58
B78: ПОЛДНИК
A79: Кисломолочный напиток | C79: 180 | F79: 5.22 | G79: 4.50 | H79: 7.20 | I79: 90.00 | J79: 1.26 | K79: №420 СБ дошк 2016
A80: (Кефир,ряженка,катык,напиток ацидофильный/йогурт) | B80: кисломолочный напиток | D80: 185.00 | E80: 180.00
A81: Кондитерское изделие | B81: вафли | C81: 20 | D81: 20.00 | E81: 20.00 | F81: 3.28 | G81: 4.80 | H81: 32.00 | I81: 192.00 | K81: табл 10 стр 202, Ддели +,2012
A82: Итого: | C82: 200 | F82: =F79+F81 -> 8.50 | G82: 9.30 | H82: =H79+H81 -> 39.20 | I82: 282.00 | J82: 1.26
B83: УЖИН
A84: Котлеты рыбные | C84: 70 | F84: 8.54 | G84: 5.43 | H84: 10.26 | I84: 124.56 | J84: 0.22 | K84: №271 СБ дошк 2016
B85: рыба (минтай с/м БГ) | D85: 63.3 | E85: 46.2
B86: соль иодированная | D86: 0.7 | E86: 0.7
B87: хлеб пшеничный | D87: 12.6 | E87: 12.6
B88: молоко | D88: 18.2 | E88: 18.2
B89: сухари панировочные | D89: 7 | E89: 7
B90: масса полуфабриката | E90: 81
B91: масло растительное | D91: 3 | E91: 3
A92: Пюре Картофельное | C92: 140 | F92: 2.86 | G92: 4.48 | H92: 19.08 | I92: 128.10 | J92: 16.95 | K92: № 339 СБ дошк 2016
B93: Картофель | D93: 159.60 | E93: 119.70
B94: Молоко | D94: 22.12 | E94: 21.00
B95: Масло сливочное | D95: 5.00 | E95: 5.00
B96: соль иодированная | D96: 0.52 | E96: 0.52
A97: Чай с сахаром | C97: 180/6 | F97: 0.06 | G97: 0.02 | H97: 6.02 | I97: 24.10 | J97: 0.03 | K97: № 392 Дели 2010
B98: чай весовой | D98: 0.45 | E98: 0.45
B99: сахар | D99: 6.00 | E99: 6.00
B100: Вода | D100: 180.00 | E100: 180.00
A101: Хлеб пшеничный | C101: 30 | D101: 30.00 | E101: 30.00 | F101: 2.28 | G101: 0.24 | H101: 14.76 | I101: 70.50 | J101: 0.00 | K101: табл 6 стр 134,Дели + 2012
A102: Итого: | C102: 426 | F102: =F84+F92+F97+F101 -> 13.74 | G102: =G84+G92+G97+G101+G92 -> 14.65 | H102: =H84+H92+H97+H101+H101 -> 64.88 | I102: =I84+I92+I97+I101+I101+I97 -> 441.86 | J102: =J84+J92+J97+J101 -> 17.20
A103: ВСЕГО: | C103: =C31+C35+C77+C82+C102 -> 1840.00 | F103: =F31+F35+F77+F82+F102 -> 52.70 | G103: =G31+G35+G77+G82+G102 -> 57.84 | H103: =H31+H35+H77+H82+H102 -> 257.86 | I103: =I31+I35+I77+I82+I102 -> 1808.30 | J103: =J31+J35+J77+J82+J102 -> 40.07
A105: День 2- ой
A106: Наименование блюд и | C106: Масса | D106: Кол - во | E106: Кол - во | F106: Пищевые вещества | I106: Энергетическая | J106: Витамин | K106: Сборник
A107: продуктов | C107: порции | D107: (в гр ) | E107: (в гр ) | I107: ценность | K107: рецептур
D108: брутто | E108: нетто | F108: белки | G108: жиры | H108: угл-ды | I108: Ккал | J108: С
B109: ЗАВТРАК
A110: Каша полбяная молочная с маслом сливочным | C110: 180/3 | F110: 4.83 | G110: 7.26 | H110: 29.50 | I110: 202.64 | K110: ТТК №1Д
B111: Крупа полбяная | D111: 22.50 | E111: 22.50
B112: Молоко | D112: 90.00 | E112: 90.00
B113: вода | D113: 68.00 | E113: 68.00
B114: Сахар | D114: 2.50 | E114: 2.50
B115: соль иодированная | D115: 0.50 | E115: 0.50
B116: Масло сливочное | D116: 3.00 | E116: 3.00
A117: Какао с молоком | C117: 180/6 | F117: 3.67 | G117: 3.19 | H117: 15.82 | I117: 106.74 | J117: 1.43 | K117: №397 Дели2010
B118: Какао-порошок | D118: 2.00 | E118: 2.00
B119: Сахар | D119: 6.00 | E119: 6.00
B120: Молоко | D120: 110.00 | E120: 110.00
B121: Вода | D121: 80.00 | E121: 80.00
A122: Бутерброд с сыром, маслом сливочным | C122: 30/5/5 | F122: 3.61 | G122: 5.83 | H122: 15.49 | I122: 128.77 | J122: 0.04 | K122: №3 сб дошк2016
B123: Батон нарезной | D123: 30.00 | E123: 30.00
B124: Сыр | D124: 5.10 | E124: 5.00
B125: Масло сливочное | D125: 5.00 | E125: 5.00
A126: Итого: | C126: 409 | F126: 11.32 | G126: 12.49 | H126: 54.79 | I126: 377.99 | J126: =J110+J117+J122 -> 1.47
B127: 2 - ой ЗАВТРАК
A128: Сок (или нектар) | C128: 180 | D128: 180.00 | E128: 180.00 | F128: 2.83 | G128: 3.15 | H128: 13.70 | I128: 94.40 | J128: 3.60 | K128: Согласно сборника рецептур (дошкольн.) 2016г №418
A129: в ассортименте
A130: Итого: | C130: 180 | F130: =F128 -> 2.83 | G130: =G128 -> 3.15 | H130: 13.70 | I130: 94.40 | J130: 3.60
B131: ОБЕД
A132: Салат из картофеля с солеными огурцами | C132: 60 | F132: 0.73 | G132: 4.71 | H132: 5.38 | I132: 66.84 | J132: 3.62 | K132: №23 сб дошк2016
B133: огурцы соленые | D133: 32.90 | E133: 18.00
B134: картофель | D134: 32.90 | E134: 24.00
B135: морковь | D135: 15.36 | E135: 12.00
B136: лук репчатый | D136: 3.60 | E136: 3.00
B137: масло растительное | D137: 3.00 | E137: 3.00
A138: Борщ со свежей капустой, картофелем на курином бульоне, с куриными фрикадельками,со сметаной | C138: 180/10/7 | F138: 2.84 | G138: 5.91 | H138: 8.92 | I138: 106.63 | J138: 7.82 | K138: №110, сб шк2004
B139: Капуста свежая | D139: 20.00 | E139: 16.00
B140: Картофель | D140: 21.28 | E140: 16.00
B141: Морковь | D141: 12.50 | E141: 10.00
B142: Лук репчатый | D142: 9.52 | E142: 8.00
B143: Свекла | D143: 41.00 | E143: 32.00
B144: Сахар | D144: 2.40 | E144: 2.40
B145: Томат-паста | D145: 1.00 | E145: 1.00
B146: Масло растительное | D146: 4.00 | E146: 4.00
B147: соль иодированная | D147: 0.70 | E147: 0.70
B148: Бульон | D148: 140.00 | E148: 140.00
B149: цыплята-бройлер с/м | D149: 17.56 | E149: 11.4
B150: или фарш куриный | D150: 11.97 | E150: 11.4
B151: Лук репчатый | D151: 1.2 | E151: 1
B152: Яйцо | D152: 0.96 | E152: 0.8
B153: Вода для фарша | D153: 1 | E153: 1
B154: соль иодированная | D154: 0.1 | E154: 0.1
B155: Масса полуфабриката | E155: 14.3
B156: масса готовых фрикаделек | E156: 10
B157: Сметана | D157: 7.00 | E157: 7.00
A158: Фрикадельки куриные в молочном соусе | C158: 50/25 | F158: 7.49 | G158: 8.92 | H158: 6.45 | I158: 136.30 | J158: 0.59 | K158: № 325 сб дошк 2016
B159: цыплята - бройлеры с/м | D159: 57.00 | E159: 37.00
B160: или фарш куриный | D160: 38.85 | E160: 37.00
B161: Хлеб пшеничный | D161: 9.00 | E161: 9.00
B162: Вода | D162: 12.00 | E162: 12.00
B163: соль иодированная | D163: 0.35 | E163: 0.35
B164: Масса полуфабриката | E164: 57.00
B165: Масло растительное | D165: 0.70 | E165: 0.70
B166: Соус молочный: | E166: 25.00
B167: Молоко | D167: 12.50 | E167: 12.50
B168: Масло сливочное | D168: 1.30 | E168: 1.30
B169: Мука пшеничная | D169: 1.3 | E169: 1.3
B170: Вода | D170: 12.50 | E170: 12.5
B171: Сахар | D171: 0.30 | E171: 0.3
B172: соль иодированная | D172: 0.3 | E172: 0.3
A173: Макаронные изделия отварные с маслом сливочным | C173: 130/3 | F173: 4.93 | G173: 2.75 | H173: 27.70 | I173: 155.22 | J173: 0.00 | K173: №219 Сб дошк 2016
B174: макаронные изделия | D174: 45.5 | E174: 45.50
B175: вода | D175: 275.0 | E175: 275.0
B176: соль иодированная | D176: 0.5 | E176: 0.5
B177: Масло сливочное | D177: 3.0 | E177: 3.0
A178: Компот из свежих яблок | C178: 180 | F178: 0.14 | G178: 0.14 | H178: 25.09 | I178: 103.14 | J178: 0.81 | K178: №390 СБ дошк 2016
B179: яблоки свежие | D179: 31.92 | E179: 28.00
B180: вода | D180: 183.00 | E180: 183.00
B181: сахар | D181: 6.00 | E181: 6.00
A182: Хлеб пшеничный | C182: 25 | D182: 25.00 | E182: 25.00 | F182: 1.90 | G182: 0.20 | H182: 12.30 | I182: 58.75 | J182: 0.00 | K182: табл 6 стр 134,Дели + 2012
A183: Хлеб ржаной | C183: 45 | D183: 45.00 | E183: 45.00 | F183: 2.97 | G183: 0.54 | H183: 17.82 | I183: 89.10 | K183: табл 6 стр 144,Дели + 2012
A184: Итого: | C184: 715 | F184: =F132+F138+F158+F173+F178+F183 -> 19.10 | G184: 22.01 | H184: =H132+H138+H158+H173+H178+H183 -> 91.36 | I184: =I132+I138+I158+I173+I178+I183 -> 657.23 | J184: =J132+J138+J158+J173+J178+J182+J183 -> 12.84
B185: ПОЛДНИК
A186: Кисломолочный напиток | C186: 180 | F186: 5.22 | G186: 4.50 | H186: 7.56 | I186: 91.80 | J186: 0.54 | K186: №420 СБ дошк 2016
A187: (Кефир,ряженка,катык,напиток ацидофильный/йогурт) | B187: кисломолочный напиток | D187: 185 | E187: 180
A188: Булочка дорожная | C188: 50 | F188: 3.39 | G188: 4.90 | H188: 30.10 | I188: 165.50 | K188: №453 сб дошк2016
B189: Мука пшеничная | D189: 30.50 | E189: 30.00
B190: мука пшеничная на подпыл | D190: 1.00 | E190: 1.00
B191: Сахар | D191: 6.00 | E191: 6.00
B192: Масло сливочное | D192: 6.50 | E192: 6.50
B193: соль иодированная | D193: 0.30 | E193: 0.30
B194: дрожжи сухие | D194: 0.20 | E194: 0.20
B195: вода | D195: 15.30 | E195: 15.30
B196: масса полуфабриката | E196: 57.00
B197: для крошки:
B198: мука пшеничная | D198: 1.20 | E198: 1.20
B199: масло сливочное | D199: 1.00 | E199: 1.00
B200: масса крошки | E200: 2.00
B201: масло растительное для смазки изделй | D201: 1.00 | E201: 1.00
A202: Итого: | C202: 230 | F202: 8.41 | G202: =SUM(G185:G201) -> 9.40 | H202: =SUM(H185:H201) -> 37.66 | I202: 257.30 | J202: 0.54
B203: УЖИН
A204: Запеканка творожная с ягодным соусом | C204: 120/30 | F204: 13.34 | G204: 14.53 | H204: 49.10 | I204: 418.50 | J204: 2.14 | K204: №251, сбдошк 2016
... 824 more rows

Sheet 1-3 года
A5: День 1 - ый
A6: Наименование блюд и | C6: Масса | D6: Пищевые вещества | G6: Энергетическая | H6: В1,мг | I6: С,мг | J6: A,мкг | K6: Е,мг | L6: Ca | M6: P | N6: Mg | O6: Fe | P6: Сборник
A7: продуктов | C7: порции | G7: ценность | P7: рецептур
D8: белки | E8: жиры | F8: угл-ды | G8: Ккал
A10: Каша "Дружба" молочная с маслом сливочным | C10: 140/3 | D10: 4.22 | E10: 4.92 | F10: 23.38 | G10: 155.56 | H10: 0.07 | I10: 0.67 | J10: 22.34 | K10: 0.08 | L10: 92.40 | M10: 108.50 | N10: 26.05 | O10: 0.56 | P10: ТТК №7Д
A11: Кофейный напиток с молоком | C11: 180/6 | D11: 2.85 | E11: 2.41 | F11: 14.35 | G11: 90.54 | H11: 0.0396 | I11: 1.17 | J11: 18 | K11: 0 | L11: 113.202 | M11: 81 | N11: 12.6 | O11: 0.1206 | P11: №395Дели2010
A12: Бутерброд с маслом сливочным | C12: 25/5 | D12: 1.92 | E12: 4.36 | F12: 12.92 | G12: 98.50 | H12: 0.0275 | I12: 0 | J12: 20 | K12: 0.475 | L12: 5.95 | M12: 17.75 | N12: 3.25 | O12: 0.31 | P12: №1 Дели2010
A13: Итого: | C13: 359 | D13: 8.79 | E13: 9.78 | F13: 41.62 | G13: 279.58 | H13: =SUM(H10:H12) -> 0.14 | I13: 1.84 | J13: 60.34 | K13: 0.56 | L13: 211.56 | M13: 207.25 | N13: 41.90 | O13: 0.99
B14: 2 - ой ЗАВТРАК
A15: Фрукты свежие | C15: 100 | D15: 0.40 | E15: 0.40 | F15: 9.80 | G15: 47.00 | H15: 0.03 | I15: 10.00 | K15: 0.20 | L15: 16.00 | M15: 11.00 | N15: 9.00 | O15: 2.20 | P15: №386 СБ
A16: Итого: | C16: 100 | D16: 0.40 | E16: 0.40 | F16: 9.80 | G16: 47.00 | H16: =H15 -> 0.03 | I16: =I15 -> 10.00 | J16: 0.00 | K16: 0.20 | L16: 16.00 | M16: 11.00 | N16: 9.00 | O16: 2.20
B17: ОБЕД
A18: Салат припущенной из моркови с яблоками | C18: 40 | D18: 0.42 | E18: 0.07 | F18: 3.41 | G18: 15.96 | H18: 0.02 | I18: 1.75 | K18: 0.14 | L18: 9.60 | M18: 17.81 | N18: 12.15 | O18: 0.43 | P18: №41,сб дошк2016
A19: Суп вермишелевый с картофелем с куриными фрикадельками | C19: 150/10 | D19: 3.49 | E19: 2.86 | F19: 10.47 | G19: 88.11 | H19: 0.07 | I19: 5.05 | J19: 3.98 | K19: 0.88 | L19: 22.12 | M19: 50.96 | N19: 17.81 | O19: 0.79 | P19: №83 СБ дошк 2016
A20: Котлеты рубленые из индейки | C20: 50 | D20: 8.35 | E20: 9.68 | F20: 8.22 | G20: 154.00 | H20: 0.04 | I20: 0.09 | J20: 16.70 | K20: 1.40 | L20: 28.30 | M20: 67.98 | N20: 10.87 | O20: 0.79 | P20: СБ дошкольн. №322, 2016
A21: Каша гречневая вязкая с маслом сливочным | C21: 110/2 | D21: 3.37 | E21: 5.12 | F21: 15.08 | G21: 119.90 | H21: 0.0847 | J21: 8 | K21: 0.2739 | L21: 6.673 | M21: 80.438 | N21: 52.822 | O21: 1.7805 | P21: № 303 сб шк 2017
A22: Напиток из сухофруктов | C22: 150 | D22: 0.50 | E22: 0.07 | F22: 24.01 | G22: 100 | H22: 0.012 | I22: 0.5445 | J22: 0 | K22: 0.381 | L22: 24.36 | M22: 17.58 | N22: 13.095 | O22: 0.5235 | P22: №394 Сб дошк 2016
A23: Хлеб пшеничный | C23: 15 | D23: 1.14 | E23: 0.12 | F23: 7.38 | G23: 35 | H23: 0.0165 | K23: 0.165 | L23: 3 | M23: 9.75 | N23: 2.1 | O23: 0.165 | P23: табл 6 стр 134,Дели + 2012
A24: Хлеб ржаной | C24: 35 | D24: 2.31 | E24: 0.42 | F24: 13.85 | G24: 69.23 | H24: 0.0595 | K24: 0.49 | L24: 10.15 | M24: 52.5 | N24: 16.45 | O24: 1.365 | P24: табл 6 стр 144,Дели + 2012
A25: Итого: | C25: 562.00 | D25: 15.43 | E25: 15.90 | F25: 74.19 | G25: 512.82 | H25: =SUM(H17:H24) -> 0.31 | I25: =SUM(I17:I24) -> 7.44 | J25: 28.68 | K25: 3.72 | L25: 104.20 | M25: 297.01 | N25: 125.30 | O25: 5.84
B26: ПОЛДНИК
A27: Кисломолочный напиток | C27: 150 | D27: 4.35 | E27: 3.75 | F27: 6.00 | G27: 75.00 | H27: 0.06 | I27: 1.05 | J27: 30 | K27: 0 | L27: 180 | M27: 135 | N27: 21 | O27: 0.15 | P27: №420 Сб дошк 2016
A28: (Кефир,ряженка,катык,напиток ацидофильный/йогурт)
A29: Кондитерское изделие | C29: 20 | D29: 3.28 | E29: 6.10 | F29: 45.84 | G29: 249.00 | H29: 0.01 | J29: 0.50 | K29: 0.48 | L29: 0.75 | M29: 4.25 | N29: 0.50 | O29: 0.43 | P29: табл 6 стр 136,Ддели +,2012
A30: Итого: | C30: 170 | D30: 5.99 | E30: 9.85 | F30: 51.84 | G30: 324.00 | H30: 1.05 | I30: =I27+I29 -> 1.05 | J30: 30.50 | K30: 0.48 | L30: 180.75 | M30: 139.25 | N30: 21.50 | O30: 0.58
B31: УЖИН
A32: Котлеты рыбные | C32: 50 | D32: 6.10 | E32: 3.88 | F32: 7.34 | G32: 89.00 | H32: 0.03 | I32: 0.16 | J32: 2.60 | K32: 2.51 | L32: 21.74 | M32: 81.85 | N32: 19.13 | O32: 0.72 | P32: №271 СБ дошк 2016
A33: Пюре Картофельное | C33: 120 | D33: 2.45 | E33: 3.84 | F33: 16.35 | G33: 109.80 | H33: 0.11 | I33: 14.53 | J33: 0.00 | K33: 0.15 | L33: 29.58 | M33: 69.28 | N33: 22.20 | O33: 0.81 | P33: № 339 СБ дошк 2016
A34: Чай с сахаром | C34: 150/5 | D34: 0.05 | E34: 0.02 | F34: 5.02 | G34: 20.08 | H34: 0.00 | I34: 0.02 | J34: 0.00 | K34: 0.00 | L34: 8.14 | M34: 2.10 | N34: 1.05 | O34: 0.19 | P34: №392 Дели2010
A35: Хлеб пшеничный | C35: 20 | D35: 1.52 | E35: 0.16 | F35: 9.84 | G35: 47.00 | H35: 0.02 | K35: 0.22 | L35: 4.00 | M35: 13.00 | N35: 2.80 | O35: 0.22 | P35: табл 6 стр 134,Дели + 2012
A36: Итого: | C36: 345.00 | D36: 10.12 | E36: 11.74 | F36: 48.38 | G36: 354.88 | H36: =SUM(H31:H35) -> 0.16 | I36: =SUM(I31:I35) -> 14.71 | J36: 2.60 | K36: 2.88 | L36: 63.46 | M36: 166.23 | N36: 45.18 | O36: 1.94
A37: ВСЕГО: | C37: =C13+C16+C25+C36+C30 -> 1536.00 | D37: 40.73 | E37: 47.66 | F37: 225.83 | G37: 1518.28 | H37: =H13+H16+H25+H36+H30 -> 1.69 | I37: 35.04 | J37: 122.12 | K37: 7.83 | L37: 575.97 | M37: 820.74 | N37: 242.88 | O37: 11.54
A39: День 2- ой
A40: Наименование блюд и | C40: Масса | D40: Пищевые вещества | G40: Энергетическая | H40: В1,мг | I40: С,мг | J40: A,мкг | K40: Е,мг | L40: Ca | M40: P | N40: Mg | O40: Fe | P40: Сборник
A41: продуктов | C41: порции | G41: ценность | P41: рецептур
D42: белки | E42: жиры | F42: угл-ды | G42: Ккал
B43: ЗАВТРАК
A44: Каша полбяная молочная с маслом сливочным | C44: 140/3 | D44: 3.76 | E44: 6.13 | F44: 22.96 | G44: 162.00 | H44: 0.08 | I44: 0.00 | J44: 11.98 | K44: 0.66 | L44: 15.32 | M44: 95.12 | N44: 20.16 | O44: 1.59 | P44: ТТК №1Д
A45: Какао с молоком | C45: 180/6 | D45: 3.67 | E45: 3.19 | F45: 15.82 | G45: 106.74 | H45: 0.05 | I45: 1.43 | J45: 21.96 | L45: 137.00 | M45: 112.10 | N45: 19.21 | O45: 0.43 | P45: №397 Дели2010
A46: Бутерброд с сыром, маслом сливочным | C46: 25/5/5 | D46: 3.23 | E46: 5.69 | F46: 12.92 | G46: 115.67 | H46: 0.03 | I46: 0.04 | J46: 30.50 | K46: 0.50 | L46: 55.95 | M46: 47.75 | N46: 6.00 | O46: 0.35 | P46: №3 сб дошк2016
A47: Итого: | C47: 364 | D47: 8.19 | E47: 9.32 | F47: 38.78 | G47: 277.67 | H47: =SUM(H43:H46) -> 0.16 | I47: =SUM(I43:I46) -> 1.46 | J47: 64.44 | K47: 1.15 | L47: 208.27 | M47: 254.97 | N47: 45.37 | O47: 2.37
B48: 2 - ой ЗАВТРАК
A49: Сок | C49: 125 | D49: 1.99 | E49: 2.40 | F49: 10.63 | G49: 68.00 | H49: 0.01 | I49: 2.50 | J49: 0.00 | K49: 0.13 | L49: 8.75 | M49: 8.75 | N49: 5.00 | O49: 1.75
A50: Итого: | C50: 125 | D50: 1.99 | E50: 2.40 | F50: 10.63 | G50: 68.00 | H50: =H49 -> 0.01 | I50: 2.50 | J50: 0.00 | K50: 0.13 | L50: 8.75 | M50: 8.75 | N50: 5.00 | O50: 1.75
B51: ОБЕД
A52: Салат из картофеля с солеными огурцами | C52: 40 | D52: 0.49 | E52: 3.14 | F52: 3.58 | G52: 44.56 | H52: 0.02 | I52: 2.41 | K52: 0.96 | L52: 7.41 | M52: 16.84 | N52: 6.08 | O52: 0.27 | P52: №23 сб дошк2016
A53: Борщ со свежей капустой, картофелем на курином бульоне, с куриными фрикадельками,со сметаной | C53: 150/10/7 | D53: 2.66 | E53: 5.26 | F53: 7.69 | G53: 94.08 | H53: 0.03 | I53: 6.43 | J53: 6.99 | K53: 1.46 | L53: 35.99 | M53: 37.03 | N53: 16.30 | O53: 0.75 | P53: №110,сбшк2004
A54: Фрикадельки куриные в молочном соусе | C54: 40/20 | D54: 5.99 | E54: 7.13 | F54: 5.16 | G54: 109.04 | H54: 0.02 | I54: 0.47 | J54: 25.64 | K54: 0.15 | L54: 31.79 | M54: 53.28 | N54: 8.11 | O54: 0.51 | P54: № 305 сб дошк 2016
A55: Макаронные изделия отварные с маслом сливочным | C55: 110/3 | D55: 4.17 | E55: 2.66 | F55: 23.45 | G55: 134.38 | H55: 0.04 | I55: 0.00 | J55: 11.98 | K55: 0.60 | L55: 8.93 | M55: 28.15 | N55: 6.32 | O55: 0.63 | P55: №219 Сб дошк.2016
A56: Компот из яблок | C56: 150 | D56: 0.12 | E56: 0.12 | F56: 20.91 | G56: 85.95 | H56: 0.01 | I56: 0.68 | K56: 0.06 | L56: 10.64 | M56: 3.30 | N56: 3.86 | O56: 0.71 | P56: 342 сб шк 2017
A57: Хлеб пшеничный | C57: 20 | D57: 1.52 | E57: 0.16 | F57: 9.84 | G57: 47.00 | H57: 0.02 | K57: 0.22 | L57: 4.00 | M57: 13.00 | N57: 2.80 | O57: 0.22 | P57: табл 6 стр 134,Дели + 2012
A58: Хлеб ржаной | C58: 35 | D58: 2.31 | E58: 0.42 | F58: 13.86 | G58: 69.30 | H58: 0.0595 | K58: 0.49 | L58: 10.15 | M58: 52.5 | N58: 16.45 | O58: 1.365 | P58: табл 6 стр 144,Дели + 2012
A59: Итого: | C59: 585 | D59: 14.95 | E59: 16.11 | F59: 70.63 | G59: 468.01 | H59: =SUM(H51:H58) -> 0.21 | I59: =SUM(I51:I58) -> 10.00 | J59: 44.61 | K59: 3.94 | L59: 108.90 | M59: 204.10 | N59: 59.92 | O59: 4.46
B60: ПОЛДНИК
A61: Кисломолочный напиток | C61: 150 | D61: 4.35 | E61: 3.75 | F61: 6.30 | G61: 76.50 | H61: 0.05 | I61: 0.45 | J61: 30.00 | L61: 186.00 | M61: 138.00 | N61: 21.00 | O61: 0.15 | P61: №420 Сб дошк 2016
A62: (кефир,ряженка,катык,напиток ацидофильный/йогурт)
A63: Булочка дорожная | C63: 35 | D63: 2.37 | E63: 2.94 | F63: 14.75 | G63: 112.35 | H63: 0.04 | K63: 1.79 | L63: 6.51 | M63: 22.47 | N63: 9.17 | O63: 0.42 | P63: №453 сб дошк2016
A64: Итого: | C64: 185 | D64: 6.60 | E64: 6.69 | F64: 29.50 | G64: 199.85 | H64: =H61+H63 -> 0.09 | I64: =I61+I63 -> 0.45 | J64: 30.00 | K64: 1.79 | L64: 192.51 | M64: 160.47 | N64: 30.17 | O64: 0.57
B65: УЖИН
A66: Запеканка творожная с ягодным соусом | C66: 100/30 | D66: 10.92 | E66: 12.11 | F66: 47.10 | G66: 345.50 | H66: 0.07 | I66: 1.83 | J66: 74.20 | K66: 0.59 | L66: 160.79 | M66: 221.36 | N66: 30.93 | O66: 0.92 | P66: № 251 сб дошк 2016
A67: Чай с сахаром и лимоном | C67: 150/5/5 | D67: 0.10 | E67: 0.02 | F67: 5.17 | G67: 21.78 | H67: 0.00 | I67: 2.02 | J67: 0.00 | K67: 0.01 | L67: 10.14 | M67: 3.20 | N67: 1.65 | O67: 0.22 | P67: №393 Дели2010
A68: Итого: | C68: 290 | D68: 11.02 | E68: 12.13 | F68: 52.27 | G68: 367.28 | H68: =SUM(H65:H67) -> 0.07 | I68: =SUM(I65:I67) -> 3.85 | J68: 74.20 | K68: 0.60 | L68: 170.92 | M68: 224.56 | N68: 32.58 | O68: 1.14
A69: ВСЕГО: | C69: =C47+C50+C59+C68+C64 -> 1549.00 | D69: 42.75 | E69: 46.65 | F69: 201.80 | G69: 1380.81 | H69: =H47+H50+H59+H68+H64 -> 0.54 | I69: 18.26 | J69: 213.25 | K69: 7.60 | L69: 689.35 | M69: 852.85 | N69: 173.04 | O69: 10.29
A71: День 3 - ий
A72: Наименование блюд и | C72: Масса | D72: Пищевые вещества | G72: Энергетическая | H72: В1,мг | I72: С,мг | J72: A,мкг | K72: Е,мг | L72: Ca | M72: P | N72: Mg | O72: Fe | P72: Сборник
A73: продуктов | C73: порции | G73: ценность | P73: рецептур
D74: белки | E74: жиры | F74: угл-ды | G74: Ккал
B75: ЗАВТРАК
A76: Каша кукурузная молочная с маслом сливочным | C76: 140/4 | D76: 5.32 | E76: 5.60 | F76: 35.51 | G76: 213.96 | H76: 0.063 | I76: 0.672 | J76: 26.3360479 | K76: 0.2419341317 | L76: 96.20756287 | M76: 106.6252036 | N76: 22.127 | O76: 1.169988024 | P76: ТТК № 2Д
A77: Чай с молоком,сахаром | C77: 170/6 | D77: 2.52 | E77: 2.14 | F77: 9.77 | G77: 68.66 | H77: 0.03 | I77: 1.13 | J77: 17.00 | K77: 0.00 | L77: 111.22 | M77: 78.88 | N77: 13.09 | O77: 0.30 | P77: № 413 сб дошк 2016
A78: Бутерброд с маслом сливочным | C78: 25/5 | D78: 1.92 | E78: 4.36 | F78: 12.92 | G78: 98.50 | H78: 0.0275 | I78: 0 | J78: 20 | K78: 0.475 | L78: 5.95 | M78: 17.75 | N78: 3.25 | O78: 0.31 | P78: №1 Дели2010
A79: Итого: | C79: 350 | D79: 8.76 | E79: 9.85 | F79: 42.62 | G79: 293.66 | H79: =SUM(H76:H78) -> 0.12 | I79: =SUM(I76:I78) -> 1.80 | J79: 63.34 | K79: 0.72 | L79: 213.38 | M79: 203.26 | N79: 38.47 | O79: 1.78
B80: 2 - ой ЗАВТРАК
A81: Фрукты свежие | C81: 100 | D81: 0.40 | E81: 0.40 | F81: 9.80 | G81: 47.00 | H81: 0.03 | I81: 10.00 | K81: 0.20 | L81: 16.00 | M81: 11.00 | N81: 9.00 | O81: 2.20 | P81: №386 СБ
A82: Итого: | C82: 100 | D82: 0.40 | E82: 0.40 | F82: 9.80 | G82: 47.00 | H82: =H81 -> 0.03 | I82: =I81 -> 10.00 | J82: 0.00 | K82: 0.20 | L82: 16.00 | M82: 11.00 | N82: 9.00 | O82: 2.20
B83: ОБЕД
A84: Салат из кукурузы к/с | C84: 40 | D84: 1.15 | E84: 2.48 | F84: 3.22 | G84: 39.72 | H84: 0.04 | I84: 3.72 | K84: 1.13 | L84: 7.46 | M84: 23.11 | N84: 7.81 | O84: 0.26 | P84: №12 сб дошк 2016
A85: Суп картофельный с пшенной крупой на мясном бульоне,с мясом | C85: 150/10 | D85: 3.99 | E85: 2.00 | F85: 7.32 | G85: 66.28 | H85: 0.06 | I85: 5.00 | J85: 0.00 | K85: 0.79 | L85: 17.30 | M85: 56.50 | N85: 16.63 | O85: 0.76 | P85: №86 сб дошк 2016
A86: Плов из отварной говядины | C86: 150 | D86: 15.30 | E86: 14.33 | F86: 24.38 | G86: 297.00 | H86: 0.04 | I86: 0.26 | K86: 2.90 | L86: 21.69 | M86: 155.68 | N86: 32.00 | O86: 2.15 | P86: №443 сбшк2004
A87: Напиток из свежемороженных фруктов | C87: 150 | D87: 0.50 | E87: 0.07 | F87: 24.01 | G87: 99.60 | H87: 0.01 | I87: 0.54 | K87: 0.38 | L87: 24.36 | M87: 17.58 | N87: 13.10 | O87: 0.52 | P87: №392 Сб дошк 2016
A88: Хлеб пшеничный | C88: 20 | D88: 1.52 | E88: 0.16 | F88: 9.84 | G88: 47.00 | H88: 0.02 | K88: 0.22 | L88: 4.00 | M88: 13.00 | N88: 2.80 | O88: 0.22 | P88: табл 6 стр 134,Дели + 2012
A89: Хлеб ржаной | C89: 35 | D89: 2.31 | E89: 0.42 | F89: 13.86 | G89: 69.30 | H89: 0.0595 | K89: 0.49 | L89: 10.15 | M89: 52.5 | N89: 16.45 | O89: 1.365 | P89: табл 6 стр 144,Дели + 2012
A90: Итого: | C90: 555 | D90: 15.41 | E90: 17.04 | F90: 68.77 | G90: 509.88 | H90: =SUM(H83:H89) -> 0.24 | I90: 9.52 | J90: 0.00 | K90: 5.91 | L90: 84.97 | M90: 318.37 | N90: 88.79 | O90: 5.28
B91: ПОЛДНИК
A92: Молоко кипяченое | C92: 150 | D92: 4.35 | E92: 3.75 | F92: 7.20 | G92: 80.25 | H92: 0.06 | I92: 1.95 | J92: 30.00 | K92: 0.00 | L92: 180.00 | M92: 135.00 | N92: 21.00 | O92: 0.15 | P92: №419 Сб дошк 2016
A93: (молоко)
A94: Кондитерское изделие | B94: печенье | C94: 20 | D94: 1.28 | E94: 3.36 | F94: 13.70 | G94: 90.20 | H94: 0.02 | I94: 0.00 | J94: 24.00 | K94: 0.20 | L94: 4.60 | M94: 13.00 | N94: 2.00 | O94: 0.16 | P94: табл 6 стр 136,Ддели +,2012
C95: 170 | D95: 5.99 | E95: 7.11 | F95: 29.92 | G95: 200.50 | H95: =SUM(H91:H94) -> 0.08 | I95: 1.95 | J95: 54.00 | K95: 0.20 | L95: 184.60 | M95: 148.00 | N95: 23.00 | O95: 0.31
B96: УЖИН
A97: Фрикадельки рыбные отварные | C97: 50 | D97: 8.38 | E97: 1.77 | F97: 0.71 | G97: 55.00 | H97: 0.05 | I97: 0.83 | J97: 25.05 | K97: 0.41 | L97: 62.74 | M97: 114.34 | N97: 30.00 | O97: 0.58 | P97: №279 сб дошк 2016
A98: Картофель тушёный с овощами в соусе | C98: 120 | D98: 2.61 | E98: 10.07 | F98: 18.12 | G98: 172.80 | H98: 0.12 | I98: 15.97 | J98: 20.16 | K98: 3.16 | L98: 26.04 | M98: 71.25 | N98: 25.17 | O98: 0.96 | P98: №144 сбшк 2016
A99: Напиток из шиповника | C99: 150/5 | D99: 0.51 | E99: 0.21 | F99: 15.57 | G99: 66.15 | H99: 0.01 | I99: 75.00 | J99: 0.00 | K99: 0.57 | L99: 16.01 | M99: 2.58 | N99: 2.58 | O99: 0.48 | P99: №399 сб дошк 2016
A100: Хлеб пшеничный | C100: 20 | D100: 1.52 | E100: 0.16 | F100: 9.84 | G100: 47.00 | H100: 0.02 | K100: 0.22 | L100: 4.00 | M100: 13.00 | N100: 2.80 | O100: 0.22 | P100: табл 6 стр 134,Дели + 2012
A101: Итого: | C101: 345 | D101: 11.02 | E101: 12.20 | F101: 49.21 | G101: 340.95 | H101: =SUM(H96:H100) -> 0.21 | I101: =SUM(I96:I100) -> 91.80 | J101: 45.21 | K101: 4.36 | L101: 108.78 | M101: 201.17 | N101: 60.55 | O101: 2.24
A102: ВСЕГО: | C102: =C79+C82+C90+C101+C95 -> 1520 | D102: 41.58 | E102: 46.60 | F102: 200.32 | G102: 1391.99 | H102: =H79+H82+H90+H101+H95 -> 0.68 | I102: 115.08 | J102: 162.55 | K102: 11.38 | L102: 607.73 | M102: 881.80 | N102: 219.81 | O102: 11.81
A104: День 4 - ый
A105: Наименование блюд и | C105: Масса | D105: Пищевые вещества | G105: Энергетическая | H105: В1,мг | I105: С,мг | J105: A,мкг | K105: Е,мг | L105: Ca | M105: P | N105: Mg | O105: Fe | P105: Сборник
A106: продуктов | C106: порции | G106: ценность | P106: рецептур
D107: белки | E107: жиры | F107: угл-ды | G107: Ккал
B108: ЗАВТРАК
A109: Каша ячневая молочная с маслом сливочным | C109: 140/3 | D109: 5.08 | E109: 4.78 | F109: 27.39 | G109: 173.76 | H109: 0.08 | I109: 0.67 | J109: 22.34 | K109: 0.37 | L109: 112.47 | M109: 167.86 | N109: 25.52 | O109: 0.65 | P109: ТТК №10Д
A110: Кофейный напиток с молоком | C110: 180/6 | D110: 2.85 | E110: 2.41 | F110: 14.35 | G110: 90.54 | H110: 0.0396 | I110: 1.17 | J110: 18 | K110: 0 | L110: 113.202 | M110: 81 | N110: 12.6 | O110: 0.1206 | P110: №395 Дели2010
A111: Бутерброд с маслом сливочным, с повидлом | C111: 25/5/10 | D111: 1.98 | E111: 4.38 | F111: 14.82 | G111: 106.70 | H111: 0.03 | I111: 0.16 | J111: 20.00 | K111: 0.50 | L111: 7.15 | M111: 19.45 | N111: 3.95 | O111: 0.44
A112: Итого: | C112: 369 | D112: 7.99 | E112: 9.16 | F112: 41.74 | G112: 293.30 | H112: =SUM(H108:H111) -> 0.15 | I112: =SUM(I108:I111) -> 2.00 | J112: 60.34 | K112: 0.86 | L112: 232.82 | M112: 268.31 | N112: 42.07 | O112: 1.21
B113: 2 - ой ЗАВТРАК
A114: Сок | C114: 125 | D114: 1.99 | E114: 2.40 | F114: 10.63 | G114: 68.00 | H114: 0.01 | I114: 2.50 | J114: 0.00 | K114: 0.13 | L114: 8.75 | M114: 8.75 | N114: 5.00 | O114: 1.75
A115: Итого: | C115: 125 | D115: 1.99 | E115: 2.40 | F115: 10.63 | G115: 68.00 | H115: =H114 -> 0.01 | I115: =I114 -> 2.50 | J115: 0.00 | K115: 0.13 | L115: 8.75 | M115: 8.75 | N115: 5.00 | O115: 1.75
B116: ОБЕД
A117: Салат из свеклы с яблоками | C117: 40 | D117: 0.44 | E117: 2.43 | F117: 4.48 | G117: 41.56 | H117: 0.01 | I117: 2.58 | K117: 4.24 | L117: 11.71 | M117: 12.72 | N117: 6.73 | O117: 0.59 | P117: №36, сб дошк2016
A118: Суп картофельный с горохом на курином бульоне,с мясом птицы | C118: 150/10 | D118: 5.20 | E118: 4.26 | F118: 10.00 | G118: 106.00 | H118: 0.14 | I118: 3.50 | J118: 0.00 | K118: 1.46 | L118: 25.61 | M118: 52.86 | N118: 21.35 | O118: 1.23 | P118: СБ дошк.2016 №87
A119: Птица, тушеная в соусе с овощами | C119: 150 | D119: 13.34 | E119: 10.37 | F119: 12.90 | G119: 198.00 | H119: 0.14 | I119: 8.71 | J119: 37.50 | K119: 1.13 | L119: 59.04 | M119: 139.96 | N119: 33.46 | O119: 3.04 | P119: №319 Сб дошк 2016
A120: Компот из изюма | C120: 150 | D120: 0.26 | E120: 0.06 | F120: 22.39 | G120: 91.65 | H120: 0.02 | K120: 0.06 | L120: 15.24 | M120: 14.52 | N120: 6.09 | O120: 0.34 | P120: №394 СБ дошк 2016
A121: Хлеб ржаной | C121: 35 | D121: 2.31 | E121: 0.42 | F121: 13.86 | G121: 69.30 | H121: 0.0595 | K121: 0.49 | L121: 10.15 | M121: 52.5 | N121: 16.45 | O121: 1.365 | P121: табл 6 стр 144,Дели + 2012
A122: Итого: | C122: 535 | D122: 15.42 | E122: 17.12 | F122: 68.11 | G122: 506.51 | H122: =SUM(H116:H121) -> 0.36 | I122: =SUM(I116:I121) -> 14.78 | J122: 37.50 | K122: 7.37 | L122: 121.74 | M122: 272.56 | N122: 84.08 | O122: 6.56
B123: ПОЛДНИК
A124: Кисломолочный напиток | C124: 150 | D124: 4.50 | E124: 1.50 | F124: 6.00 | G124: 55.50 | H124: 0.06 | I124: 1.20 | J124: 30.00 | L124: 180.00 | M124: 147.00 | N124: 22.50 | O124: 0.15 | P124: №420 СБ дошк 2016
A125: (кефир,ряженка,катык,напиток ацидофильный/йогурт) | B125: кисломолочный напиток
A126: Кондитерское изделие | B126: печенье | C126: 20 | D126: 1.28 | E126: 3.36 | F126: 13.70 | G126: 90.20 | H126: 0.02 | I126: 0.00 | J126: 24.00 | K126: 0.20 | L126: 4.60 | M126: 13.00 | N126: 2.00 | O126: 0.16 | P126: табл 6 стр 136,Ддели +,2012
A127: Итого: | C127: 170 | D127: 5.99 | E127: 6.78 | F127: 31.70 | G127: 201.20 | H127: =SUM(H123:H126) -> 0.08 | I127: 1.20 | J127: 54.00 | K127: 0.20 | L127: 184.60 | M127: 160.00 | N127: 24.50 | O127: 0.31
B128: УЖИН
A129: Омлет с сыром | C129: 130 | D129: 8.10 | E129: 12.11 | F129: 30.90 | G129: 253.70 | H129: 0.09 | I129: 0.28 | J129: 314.60 | K129: 0.72 | L129: 226.63 | M129: 270.62 | N129: 18.92 | O129: 2.38 | P129: №229,сб дошк2016
A130: Чай с сахаром | C130: 150/5 | D130: 0.05 | E130: 0.02 | F130: 5.02 | G130: 20.08 | H130: 0.00 | I130: 0.02 | J130: 0.00 | K130: 0.00 | L130: 8.14 | M130: 2.10 | N130: 1.05 | O130: 0.19 | P130: №392 Дели2010
A131: Хлеб пшеничный | C131: 25 | D131: 1.90 | E131: 0.20 | F131: 12.30 | G131: 58.75 | H131: 0.03 | K131: 0.28 | L131: 5.00 | M131: 16.25 | N131: 3.50 | O131: 0.28 | P131: табл 6 стр 134,Дели + 2012
A132: Итого: | C132: 310 | D132: 10.05 | E132: 12.33 | F132: 48.22 | G132: 332.53 | H132: =SUM(H128:H131) -> 0.11 | I132: 0.30 | J132: 314.60 | K132: 0.99 | L132: 239.77 | M132: 288.97 | N132: 23.47 | O132: 2.85
A133: ВСЕГО: | C133: =C112+C115+C122+C132+C127 -> 1509 | D133: 41.44 | E133: 47.78 | F133: 200.40 | G133: 1401.54 | H133: =H112+H115+H122+H132+H127 -> 0.72 | I133: 20.79 | J133: 466.44 | K133: 9.55 | L133: 787.68 | M133: 998.59 | N133: 179.11 | O133: 12.68
A135: День 5 - ый
A136: Наименование блюд и | C136: Масса | D136: Пищевые вещества | G136: Энергетическая | H136: В1,мг | I136: С,мг | J136: A,мкг | K136: Е,мг | L136: Ca | M136: P | N136: Mg | O136: Fe | P136: Сборник
A137: продуктов | C137: порции | G137: ценность | P137: рецептур
D138: белки | E138: жиры | F138: угл-ды | G138: Ккал
B139: ЗАВТРАК
A140: Суп молочный с геркулесовой крупой | C140: 180 | D140: 2.67 | E140: 3.22 | F140: 5.53 | G140: 64.08 | H140: 0.03 | I140: 0.59 | J140: 23.76 | K140: 0.02 | L140: 114.84 | M140: 81.85 | N140: 12.73 | O140: 0.11 | P140: №101,сб дошк 2016
A141: Какао с молоком | C141: 150/5 | D141: 3.06 | E141: 2.66 | F141: 13.18 | G141: 88.95 | H141: 0.04 | I141: 1.19 | J141: 18.30 | K141: 0.00 | L141: 114.17 | M141: 93.42 | N141: 16.01 | O141: 0.36 | P141: №397 Дели2010
A142: Бутерброд с сыром, маслом сливочным | C142: 25/5/5 | D142: 3.23 | E142: 5.69 | F142: 12.92 | G142: 115.67 | H142: 0.03 | I142: 0.04 | J142: 30.50 | K142: 0.50 | L142: 55.95 | M142: 47.75 | N142: 6.00 | O142: 0.35 | P142: №3,сб дошк 2016
A143: Итого: | C143: 370 | D143: 8.76 | E143: 9.86 | F143: 39.29 | G143: 268.70 | H143: =SUM(H139:H142) -> 0.10 | I143: 1.82 | J143: 72.56 | K143: 0.51 | L143: 284.96 | M143: 223.02 | N143: 34.73 | O143: 0.81
B144: 2 - ой ЗАВТРАК
A145: Фрукты свежие | C145: 100 | D145: 0.40 | E145: 0.40 | F145: 9.80 | G145: 47.00 | H145: 0.03 | I145: 10.00 | K145: 0.20 | L145: 16.00 | M145: 11.00 | N145: 9.00 | O145: 2.20 | P145: №386 СБ
A146: Итого: | C146: 100 | D146: 0.40 | E146: 0.40 | F146: 9.80 | G146: 47.00 | H146: =H145 -> 0.03 | I146: 10.00 | J146: 0.00 | K146: 0.20 | L146: 16.00 | M146: 11.00 | N146: 9.00 | O146: 2.20
B147: ОБЕД
A148: Салат из квашеной капусты | C148: 30 | D148: 0.51 | E148: 1.50 | F148: 2.69 | G148: 26.34 | H148: 0.01 | I148: 5.94 | J148: 0.00 | K148: 4.62 | L148: 15.67 | M148: 10.19 | N148: 4.80 | O148: 0.20 | P148: №47 СБ дошк 2016
A149: Рассольник домашний на курином бульоне,с куриными фрикадельками, со сметаной | C149: 150/11/5 | D149: 2.88 | E149: 5.25 | F149: 8.66 | G149: 99.31 | H149: 0.07 | I149: 8.01 | J149: 9.35 | K149: 1.46 | L149: 33.28 | M149: 53.92 | N149: 18.87 | O149: 0.78 | P149: №81 сбдошк 2016
A150: Запеканка картофельная с мясом птицы со сметанным соусом | C150: 130/20 | D150: 9.93 | E150: 8.14 | F150: 23.31 | G150: 206.57 | H150: 0.09 | I150: 19.35 | J150: 21.93 | K150: 0.05 | L150: 25.18 | M150: 117.10 | N150: 33.12 | O150: 1.54 | P150: №308 СБ дошк 2016
A151: Кисель | C151: 150 | D151: 0.45 | E151: 0.08 | F151: 22.65 | G151: 92.70 | H151: 0.00 | I151: 0.83 | L151: 11.78 | M151: 12.23 | N151: 2.52 | O151: 0.28 | P151: № 648, сб шк2004
A152: Хлеб ржаной | C152: 40 | D152: 2.64 | E152: 0.48 | F152: 15.84 | G152: 79.20 | H152: 0.068 | K152: 0.56 | L152: 11.6 | M152: 60 | N152: 18.8 | O152: 1.56 | P152: табл 6 стр 144,Дели + 2012
A153: Итого: | C153: 536 | D153: 15.42 | E153: 15.93 | F153: 73.15 | G153: 504.12 | H153: =SUM(H147:H152) -> 0.23 | I153: 34.12 | J153: 31.28 | K153: 6.69 | L153: 97.50 | M153: 253.43 | N153: 78.12 | O153: 4.35
B154: ПОЛДНИК
A155: Молоко кипяченое | C155: 150 | D155: 4.35 | E155: 3.75 | F155: 7.20 | G155: 80.25 | H155: 0.06 | I155: 1.95 | J155: 30.00 | K155: 0.00 | L155: 180.00 | M155: 135.00 | N155: 21.00 | O155: 0.15 | P155: №419 Сб дошк 2016
A156: (молоко)
A157: Кондитерское изделие | B157: печенье | C157: 20 | D157: 1.28 | E157: 3.36 | F157: 13.71 | G157: 90.20 | H157: 0.02 | I157: 0.00 | J157: 18.00 | K157: 0.15 | L157: 3.45 | M157: 9.75 | N157: 1.50 | O157: 0.12
A158: Итого: | C158: 170 | D158: 5.99 | E158: 6.70 | F158: 28.92 | G158: 199.60 | H158: =SUM(H154:H157) -> 0.08 | I158: 1.95 | J158: 48.00 | K158: 0.15 | L158: 183.45 | M158: 144.75 | N158: 22.50 | O158: 0.27
B159: УЖИН
A160: Эч-почмак с говядиной | C160: 75 | D160: 9.90 | E160: 11.20 | F160: 43.00 | G160: 310.72 | P160: Согласно сборника рецептур блюд и кулинарных изделий татарской кухни
A161: Чай с сахаром и лимоном | C161: 150/5/5 | D161: 0.10 | E161: 0.02 | F161: 5.17 | G161: 21.78 | H161: 0.00 | I161: 2.02 | J161: 0.00 | K161: 0.01 | L161: 10.14 | M161: 3.20 | N161: 1.65 | O161: 0.22 | P161: №393 Дели2010
A162: Итого: | C162: 235 | D162: 10.00 | E162: 11.22 | F162: 48.21 | G162: 332.50 | H162: =SUM(H159:H161) -> 0.00 | I162: 2.02 | J162: 0.00 | K162: 0.01 | L162: 10.14 | M162: 3.20 | N162: 1.65 | O162: 0.22
A163: ВСЕГО: | C163: =C143+C146+C153+C162+C158 -> 1411 | D163: 40.57 | E163: 44.11 | F163: 199.36 | G163: 1351.92 | H163: =H143+H146+H153+H162+H158 -> 0.44 | I163: 49.91 | J163: 151.84 | K163: 7.56 | L163: 592.05 | M163: 635.40 | N163: 146.00 | O163: 7.85
A166: День 6 - ый
A167: Наименование блюд и | C167: Масса | D167: Пищевые вещества | G167: Энергетическая | H167: В1,мг | I167: С,мг | J167: A,мкг | K167: Е,мг | L167: Ca | M167: P | N167: Mg | O167: Fe | P167: Сборник
A168: продуктов | C168: порции | G168: ценность | P168: рецептур
D169: белки | E169: жиры | F169: угл-ды | G169: Ккал
B170: ЗАВТРАК
A171: Каша пшенная молочная с маслом сливочным | C171: 140/4 | D171: 3.94 | E171: 7.57 | F171: 22.40 | G171: 173.36 | H171: 0.11 | I171: 0.00 | J171: 4.00 | K171: 0.19 | L171: 11.19 | M171: 80.97 | N171: 27.90 | O171: 0.92 | P171: ТТК №6Д
A172: Чай с молоком,сахаром | C172: 170/6 | D172: 2.52 | E172: 2.14 | F172: 9.77 | G172: 68.66 | H172: 0.03 | I172: 1.13 | J172: 17.00 | K172: 0.00 | L172: 111.22 | M172: 78.88 | N172: 13.09 | O172: 0.30 | P172: № 413 сб дошк 2016
A173: Бутерброд с маслом сливочным | C173: 25/5 | D173: 1.92 | E173: 4.36 | F173: 12.92 | G173: 98.50 | H173: 0.0275 | I173: 0 | J173: 20 | K173: 0.475 | L173: 5.95 | M173: 17.75 | N173: 3.25 | O173: 0.31 | P173: №1 Дели2010
A174: Итого: | C174: 350 | D174: 8.38 | E174: 9.85 | F174: 42.09 | G174: 271.86 | H174: =H171+H172+H173 -> 0.17 | I174: 1.13 | J174: 41.00 | K174: 0.67 | L174: 128.37 | M174: 177.60 | N174: 44.24 | O174: 1.54
B175: 2 - ой ЗАВТРАК
A176: Сок | C176: 125 | D176: 1.99 | E176: 2.40 | F176: 10.63 | G176: 68.00 | H176: 0.01 | I176: 2.50 | J176: 0.00 | K176: 0.13 | L176: 8.75 | M176: 8.75 | N176: 5.00 | O176: 1.75
A177: Итого: | C177: 125 | D177: 1.99 | E177: 2.40 | F177: 10.63 | G177: 68.00 | H177: =H176 -> 0.01 | I177: 2.50 | J177: 0.00 | K177: 0.13 | L177: 8.75 | M177: 8.75 | N177: 5.00 | O177: 1.75
B178: ОБЕД
A179: Салат из зеленого горошка к/с | C179: 30 | D179: 0.89 | E179: 1.56 | F179: 1.88 | G179: 25.08 | H179: 0.03 | I179: 3.30 | J179: 0.00 | K179: 0.72 | L179: 6.44 | M179: 17.99 | N179: 6.24 | O179: 0.21 | P179: №10 СБ дошк 2016
A180: Суп из овощей на курином бульоне,с куриными фрикадельками,со сметаной | C180: 150/11/5 | D180: 2.57 | E180: 5.19 | F180: 6.54 | G180: 87.76 | H180: 0.05 | I180: 6.36 | J180: 9.35 | K180: 1.43 | L180: 30.34 | M180: 43.99 | N180: 14.48 | O180: 0.60 | P180: ТТК 535 23,12,2020
A181: Тефтели куриные с рисом в сметанно-томатном соусе | C181: 40/20 | D181: 5.81 | E181: 6.29 | F181: 4.59 | G181: 98.42 | H181: 0.02 | I181: 0.68 | J181: 22.68 | K181: 0.15 | L181: 24.26 | M181: 47.52 | N181: 7.73 | O181: 0.53 | P181: ТТК 698 от 09.04.2021
A182: Вермишель отварная | C182: 110 | D182: 4.15 | E182: 0.49 | F182: 23.41 | G182: 114.62 | H182: 0.04 | K182: 0.57 | L182: 8.21 | M182: 27.26 | N182: 6.32 | O182: 0.62 | P182: №219 Сб дошк.2016
A183: Напиток из сухофруктов | C183: 150 | D183: 0.50 | E183: 0.07 | F183: 24.01 | G183: 99.60 | H183: 0.01 | I183: 0.54 | J183: 0.00 | K183: 0.38 | L183: 24.36 | M183: 17.58 | N183: 13.10 | O183: 0.52 | P183: №394 Сб дошк 2016
A184: Хлеб ржаной | C184: 35 | D184: 2.31 | E184: 0.42 | F184: 13.86 | G184: 69.30 | H184: 0.0595 | K184: 0.49 | L184: 10.15 | M184: 52.5 | N184: 16.45 | O184: 1.365 | P184: табл 6 стр 144,Дели + 2012
A185: Итого: | C185: 551 | D185: 14.42 | E185: 15.99 | F185: 74.28 | G185: 494.78 | H185: =SUM(H178:H184) -> 0.22 | I185: =SUM(I178:I184) -> 10.88 | J185: 32.03 | K185: 3.74 | L185: 103.75 | M185: 206.83 | N185: 64.31 | O185: 3.84
B186: ПОЛДНИК
A187: Кисломолочный напиток | C187: 150 | D187: 2.10 | E187: 2.50 | F187: 10.50 | G187: 72.50 | H187: 0.05 | I187: 1.20 | J187: 30.00 | K187: 0.00 | L187: 177.00 | M187: 144.00 | N187: 24.00 | O187: 0.15 | P187: №420 Сб дошк 2016
A188: (кефир,ряженка,катык,напиток ацидофильный /йогурт) | B188: кисломолочный напиток
A189: Булочка с сахаром | C189: 35 | D189: 2.66 | E189: 4.20 | F189: 18.42 | G189: 95.67 | H189: 0.05 | I189: 0.11 | J189: 3.21 | K189: 0.74 | L189: 7.05 | M189: 26.33 | N189: 4.71 | O189: 0.34 | P189: №442 СБ шк 2017
A190: Итого: | C190: 185 | D190: 5.98 | E190: 6.70 | F190: 28.92 | G190: 199.80 | H190: =H187+H189 -> 0.09 | I190: 1.31 | J190: 33.21 | K190: 0.74 | L190: 184.05 | M190: 170.33 | N190: 28.71 | O190: 0.49
B191: УЖИН
A192: Запеканка творожная с ягодным соусом | C192: 100/30 | D192: 10.92 | E192: 12.11 | F192: 47.10 | G192: 345.50 | H192: 0.06 | I192: 0.51 | J192: 74.00 | K192: 0.01 | L192: 150.63 | M192: 215.64 | N192: 25.01 | O192: 0.96 | P192: № 251 сб дошк 2016
A193: Напиток из шиповника | C193: 150/5 | D193: 0.51 | E193: 0.21 | F193: 15.57 | G193: 66.15 | H193: 0.01 | I193: 75.00 | J193: 0.00 | K193: 0.57 | L193: 16.01 | M193: 2.58 | N193: 2.58 | O193: 0.48 | P193: №399 сб дошк 2016
A194: Итого: | C194: 285 | D194: 11.01 | E194: 12.32 | F194: 53.27 | G194: 367.45 | H194: =SUM(H191:H193) -> 0.07 | I194: =SUM(I191:I193) -> 75.51 | J194: 74.00 | K194: 0.58 | L194: 166.64 | M194: 218.22 | N194: 27.59 | O194: 1.44
A195: ВСЕГО: | C195: =C174+C177+C185+C194+C190 -> 1496 | D195: 41.78 | E195: 47.26 | F195: 209.19 | G195: 1401.89 | H195: =H174+H177+H185+H194+H190 -> 0.56 | I195: 91.32 | J195: 180.24 | K195: 5.85 | L195: 591.55 | M195: 781.72 | N195: 169.85 | O195: 9.06
A197: День 7 - ой
A198: Наименование блюд и | C198: Масса | D198: Пищевые вещества | G198: Энергетическая | H198: В1,мг | I198: С,мг | J198: A,мкг | K198: Е,мг | L198: Ca | M198: P | N198: Mg | O198: Fe | P198: Сборник
A199: продуктов | C199: порции | G199: ценность | P199: рецептур
D200: белки | E200: жиры | F200: угл-ды | G200: Ккал
B201: ЗАВТРАК
A202: Каша кукурузная молочная с маслом сливочным | C202: 140/3 | D202: 5.31 | E202: 4.87 | F202: 35.49 | G202: 207.36 | H202: 0.063 | I202: 0.672 | J202: 22.3360479 | K202: 0.2359341317 | L202: 95.96756287 | M202: 106.3252036 | N202: 22.127 | O202: 1.167988024 | P202: ТТК № 2Д
A203: Кофейный напиток с молоком | C203: 180/6 | D203: 2.85 | E203: 2.41 | F203: 14.35 | G203: 90.54 | H203: 0.0396 | I203: 1.17 | J203: 18 | K203: 0 | L203: 113.202 | M203: 81 | N203: 12.6 | O203: 0.1206 | P203: №395 Дели2010
A204: Бутерброд с маслом сливочным | C204: 25/5 | D204: 1.915 | E204: 4.355 | F204: 12.92 | G204: 98.5 | H204: 0.0275 | I204: 0 | J204: 20 | K204: 0.475 | L204: 5.95 | M204: 17.75 | N204: 3.25 | O204: 0.31 | P204: №1 Дели2010
A205: Сыр порционно | C205: 10 | D205: 2.63 | E205: 2.66 | G205: 34.33 | H205: 0.00 | I205: 0.07 | J205: 21.00 | K205: 0.04 | L205: 100.00 | M205: 60.00 | N205: 5.50 | O205: 0.07 | P205: №15 сб шк2017
A206: Итого: | C206: 369 | D206: 8.16 | E206: 9.84 | F206: 42.62 | G206: 293.69 | H206: =H202+H203+H204+H205 -> 0.13 | I206: =I202+I203+I204+I205 -> 1.91 | J206: 81.34 | K206: 0.75 | L206: 315.12 | M206: 265.08 | N206: 43.48 | O206: 1.67
B207: 2 - ой ЗАВТРАК
A208: Фрукты свежие | C208: 100 | D208: 0.40 | E208: 0.40 | F208: 9.80 | G208: 47.00 | H208: 0.03 | I208: 10.00 | K208: 0.20 | L208: 16.00 | M208: 11.00 | N208: 9.00 | O208: 2.20 | P208: №386 СБ
A209: Итого: | C209: 100 | D209: 0.40 | E209: 0.40 | F209: 9.80 | G209: 47.00 | H209: =H208 -> 0.03 | I209: =I208 -> 10.00 | J209: 0.00 | K209: 0.20 | L209: 16.00 | M209: 11.00 | N209: 9.00 | O209: 2.20
B210: ОБЕД
A211: Капуста тушеная | C211: 40 | D211: 0.82 | E211: 1.47 | F211: 3.16 | G211: 30.80 | H211: 0.01 | I211: 6.83 | K211: 6.16 | L211: 20.90 | M211: 13.58 | N211: 6.40 | O211: 0.27 | P211: №354 СБ дошк 2016
A212: Суп картофельный с клецками на мясном бульоне с мясом | C212: 150/10 | D212: 4.94 | E212: 3.13 | F212: 11.33 | G212: 101.38 | H212: 0.07 | I212: 3.50 | J212: 12.63 | K212: 1.03 | L212: 21.32 | M212: 66.25 | N212: 18.18 | O212: 0.94 | P212: №91,289 сб дошк 2016
... 134 more rows

Sheet 3-7 лет
C2: Примерное 10-дневное меню
C3: для организации питания детей в дошкольных учреждениях
C4: с 12 - часовым пребыванием от 3 до 7 лет
A6: День 1 - ый
A7: Наименование блюд и | C7: Масса | D7: Пищевые вещества | G7: Энергетическая | H7: В1,мг | I7: С,мг | J7: A,мкг | K7: Е,мг | L7: Ca | M7: P | N7: Mg | O7: Fe | P7: Сборник рецептур
A8: продуктов | C8: порции | G8: ценность
D9: белки | E9: жиры | F9: угл-ды | G9: Ккал
B10: ЗАВТРАК
A11: Каша "Дружба" молочная с маслом сливочным | C11: 180/5 | D11: 5.44 | E11: 7.17 | F11: 30.09 | G11: 207.60 | H11: 0.09 | I11: 0.86 | J11: 33.32 | K11: 0.11 | L11: 119.08 | M11: 139.85 | N11: 33.50 | O11: 0.72 | P11: ТТК №7Д
A12: Кофейный напиток с молоком | C12: 180/6 | D12: 2.85 | E12: 2.41 | F12: 14.35 | G12: 90.54 | H12: 0.04 | I12: 1.17 | J12: 18.00 | K12: 0.00 | L12: 113.20 | M12: 81.00 | N12: 12.60 | O12: 0.12 | P12: №395 Дели2010
A13: Бутерброд с маслом сливочным | C13: 30/5 | D13: 2.29 | E13: 4.50 | F13: 15.49 | G13: 111.60 | H13: 0.03 | I13: 0.00 | J13: 20.00 | K13: 0.56 | L13: 6.90 | M13: 21.00 | N13: 3.90 | O13: 0.37 | P13: №1 Дели2010
A14: Итого: | C14: 406 | D14: 10.58 | E14: 12.50 | F14: 54.79 | G14: 376.19 | H14: =SUM(H10:H13) -> 0.16 | I14: =SUM(I10:I13) -> 2.03 | J14: 71.32 | K14: 0.67 | L14: 239.18 | M14: 241.85 | N14: 50.00 | O14: 1.21
B15: 2 - ой ЗАВТРАК
A16: Фрукты свежие | C16: 100 | D16: 0.40 | E16: 0.40 | F16: 9.80 | G16: 47.00 | H16: 0.03 | I16: 10.00 | K16: 0.20 | L16: 16.00 | M16: 11.00 | N16: 9.00 | O16: 2.20 | P16: №386 СБ
A17: (яблоки,или апельсин, или банан,или мандарин ) | P17: дошк.2016
A18: Итого: | C18: 100 | D18: 0.40 | E18: 0.40 | F18: 9.80 | G18: 47.00 | H18: =H16 -> 0.03 | I18: 10.00 | J18: 0.00 | K18: 0.20 | L18: 16.00 | M18: 11.00 | N18: 9.00 | O18: 2.20
B19: ОБЕД
A20: Салат из припущенной моркови с яблоками | C20: 60 | D20: 0.64 | E20: 0.10 | F20: 5.11 | G20: 23.94 | H20: 0.03 | I20: 2.63 | K20: 0.21 | L20: 14.40 | M20: 26.72 | N20: 18.23 | O20: 0.64 | P20: №41,сб дошк2016
A21: Суп вермишелевый с картофелем с куриными фрикадельками | C21: 180/15 | D21: 3.79 | E21: 3.87 | F21: 13.64 | G21: 112.33 | H21: 0.08 | I21: 6.17 | J21: 8.92 | K21: 1.00 | L21: 31.58 | M21: 48.69 | N21: 19.13 | O21: 0.91 | P21: №88,сб дошк2016
A22: Котлеты рубленые из индейки | C22: 70 | D22: 11.69 | E22: 13.55 | F22: 11.51 | G22: 215.60 | H22: 0.06 | I22: 0.13 | J22: 23.38 | K22: 1.96 | L22: 39.62 | M22: 95.17 | N22: 15.22 | O22: 1.11 | P22: СБ дошкольн. №322, 2016
A23: Каша гречневая вязкая с маслом сливочным | C23: 130/3 | D23: 3.99 | E23: 6.51 | F23: 17.82 | G23: 145.86 | H23: 0.10 | I23: 0.00 | J23: 11.98 | K23: 0.33 | L23: 8.04 | M23: 95.25 | N23: 62.43 | O23: 2.11 | P23: № 303 сб шк 2017
A24: Напиток из сухофруктов | C24: 180 | D24: 0.60 | E24: 0.08 | F24: 28.81 | G24: 119.52 | H24: 0.01 | I24: 0.65 | J24: 0.00 | K24: 0.46 | L24: 29.23 | M24: 21.10 | N24: 15.71 | O24: 0.63 | P24: №394 Сб дошк 2016
A25: Хлеб пшеничный | C25: 25 | D25: 1.90 | E25: 0.20 | F25: 12.30 | G25: 58.75 | H25: 0.03 | K25: 0.28 | L25: 5.00 | M25: 16.25 | N25: 3.50 | O25: 0.28 | P25: табл 6 стр 134,Дели + 2012
A26: Хлеб ржаной | C26: 45 | D26: 2.97 | E26: 0.54 | F26: 17.82 | G26: 89.10 | H26: 0.08 | K26: 0.63 | L26: 13.05 | M26: 67.50 | N26: 21.15 | O26: 1.76 | P26: табл 6 стр 144,Дели + 2012
A27: Итого: | C27: 708 | D27: 18.61 | E27: 20.99 | F27: 93.38 | G27: 652.06 | H27: =SUM(H19:H26) -> 0.39 | I27: =SUM(I19:I26) -> 9.57 | J27: 44.27 | K27: 4.86 | L27: 140.91 | M27: 370.68 | N27: 155.37 | O27: 7.42
B28: ПОЛДНИК
A29: Кисломолочный напиток | C29: 180 | D29: 5.22 | E29: 4.50 | F29: 7.20 | G29: 90.00 | H29: 0.07 | I29: 1.26 | J29: 36.00 | K29: 0.00 | L29: 216.00 | M29: 162.00 | N29: 25.20 | O29: 0.18 | P29: №420 СБ дошк 2016
A30: (Кефир,ряженка,катык,напиток ацидофильный/йогурт) | B30: кисломолочный напиток
A31: Кондитерское изделие | B31: вафли | C31: 20 | D31: 3.28 | E31: 4.80 | F31: 32.00 | G31: 192.00 | H31: 0.01 | J31: 1.00 | K31: 0.95 | L31: 1.50 | M31: 8.50 | N31: 1.00 | O31: 0.86 | P31: табл 10 стр 202, Ддели +,2012
A32: Итого: | C32: 200 | D32: 8.50 | E32: 9.30 | F32: 39.20 | G32: 282.00 | H32: =H29+H31 -> 0.08 | I32: 1.26 | J32: 37.00 | K32: 0.95 | L32: 217.50 | M32: 170.50 | N32: 26.20 | O32: 1.04
B33: УЖИН
A34: Котлеты рыбные | C34: 70 | D34: 8.54 | E34: 5.43 | F34: 10.28 | G34: 124.60 | H34: 0.04 | I34: 0.22 | J34: 3.64 | K34: 3.51 | L34: 30.44 | M34: 114.59 | N34: 26.78 | O34: 1.01 | P34: №271 СБ дошк 2016
A35: Пюре Картофельное | C35: 140 | D35: 2.86 | E35: 4.48 | F35: 19.08 | G35: 128.10 | H35: 0.13 | I35: 16.95 | J35: 0.00 | K35: 0.17 | L35: 34.51 | M35: 80.82 | N35: 25.90 | O35: 0.94 | P35: № 339 СБ дошк 2016
A36: Чай с сахаром | C36: 180/6 | D36: 0.06 | E36: 0.02 | F36: 6.02 | G36: 24.10 | H36: 0.00 | I36: 0.03 | J36: 0.00 | K36: 0.00 | L36: 9.77 | M36: 2.52 | N36: 1.26 | O36: 0.23 | P36: № 392 Дели 2010
A37: Хлеб пшеничный | C37: 30 | D37: 2.28 | E37: 0.24 | F37: 14.76 | G37: 70.50 | H37: 0.03 | K37: 0.33 | L37: 6.00 | M37: 19.50 | N37: 4.20 | O37: 0.33 | P37: табл 6 стр 134,Дели + 2012
A38: Итого: | C38: 426 | D38: 13.74 | E38: 14.65 | F38: 64.88 | G38: 441.86 | H38: =H34+H35+H36+H37 -> 0.21 | I38: =I34+I35+I36+I37 -> 17.20 | J38: 3.64 | K38: 4.01 | L38: 80.71 | M38: 217.43 | N38: 58.14 | O38: 2.51
A39: ВСЕГО: | C39: =C14+C18+C27+C32+C38 -> 1840.00 | D39: 52.70 | E39: 57.84 | F39: 257.86 | G39: 1808.30 | H39: =H14+H18+H27+H32+H38 -> 0.87 | I39: 40.07 | J39: 156.23 | K39: 10.69 | L39: 694.31 | M39: 1011.46 | N39: 298.71 | O39: 14.38
A41: День 2- ой
A42: Наименование блюд и | C42: Масса | D42: Пищевые вещества | G42: Энергетическая | H42: В1,мг | I42: С,мг | J42: A,мкг | K42: Е,мг | L42: Ca | M42: P | N42: Mg | O42: Fe | P42: Сборник
A43: продуктов | C43: порции | G43: ценность | P43: рецептур
D44: белки | E44: жиры | F44: угл-ды | G44: Ккал
B45: ЗАВТРАК
A46: Каша полбяная молочная с маслом сливочным | C46: 180/3 | D46: 4.83 | E46: 7.26 | F46: 29.50 | G46: 202.64 | H46: 0.10 | I46: 0.00 | J46: 11.98 | K46: 0.84 | L46: 19.49 | M46: 122.04 | N46: 25.92 | O46: 2.05 | P46: ТТК №1Д
A47: Какао с молоком | C47: 180/6 | D47: 3.67 | E47: 3.19 | F47: 15.82 | G47: 106.74 | H47: 0.05 | I47: 1.43 | J47: 21.96 | L47: 137.00 | M47: 112.10 | N47: 19.21 | O47: 0.43 | P47: №397 Дели2010
A48: Бутерброд с сыром, маслом сливочным | C48: 30/5/5 | D48: 3.61 | E48: 5.83 | F48: 15.49 | G48: 128.77 | H48: 0.03 | I48: 0.04 | J48: 30.50 | K48: 0.58 | L48: 56.90 | M48: 51.00 | N48: 6.65 | O48: 0.41 | P48: №3 сб дошк2016
A49: Итого: | C49: 409 | D49: 11.32 | E49: 12.49 | F49: 54.79 | G49: 377.99 | H49: =SUM(H45:H48) -> 0.18 | I49: 1.46 | J49: 64.44 | K49: 1.42 | L49: 213.39 | M49: 285.14 | N49: 51.78 | O49: 2.88
B50: 2 - ой ЗАВТРАК
A51: Сок (или нектар) | C51: 180 | D51: 2.83 | E51: 3.15 | F51: 13.70 | G51: 94.40 | H51: 0.02 | I51: 3.60 | J51: 0.00 | K51: 0.18 | L51: 12.60 | M51: 12.60 | N51: 7.20 | O51: 2.52 | P51: №418 сб дошк 2016
A52: в ассортименте
A53: Итого: | C53: 180 | D53: 2.83 | E53: 3.15 | F53: 13.70 | G53: 94.40 | H53: =H51 -> 0.02 | I53: 3.60 | J53: 0.00 | K53: 0.18 | L53: 12.60 | M53: 12.60 | N53: 7.20 | O53: 2.52
B54: ОБЕД
A55: Салат из картофеля с солеными огурцами | C55: 60 | D55: 0.73 | E55: 4.71 | F55: 5.38 | G55: 66.84 | H55: 0.03 | I55: 3.62 | K55: 1.45 | L55: 11.11 | M55: 25.26 | N55: 9.13 | O55: 0.41 | P55: №23 сб дошк2016
A56: Борщ со свежей капустой, картофелем на курином бульоне, с куриными фрикадельками,со сметаной | C56: 180/10/7 | D56: 2.84 | E56: 5.91 | F56: 8.92 | G56: 106.63 | H56: 0.04 | I56: 7.82 | J56: 10.97 | K56: 1.77 | L56: 46.56 | M56: 53.99 | N56: 20.88 | O56: 1.01 | P56: №110, сб шк2004
A57: Фрикадельки куриные в молочном соусе | C57: 50/25 | D57: 7.49 | E57: 8.92 | F57: 6.45 | G57: 136.30 | H57: 0.03 | I57: 0.59 | J57: 32.05 | K57: 0.19 | L57: 39.74 | M57: 66.60 | N57: 10.13 | O57: 0.63 | P57: № 325 сб дошк 2016
A58: Макаронные изделия отварные с маслом сливочным | C58: 130/3 | D58: 4.93 | E58: 2.75 | F58: 27.70 | G58: 155.22 | H58: 0.05 | I58: 0.00 | J58: 11.98 | K58: 0.70 | L58: 10.42 | M58: 33.11 | N58: 7.47 | O58: 0.74 | P58: №219 Сб дошк 2016
A59: Компот из свежих яблок | C59: 180 | D59: 0.14 | E59: 0.14 | F59: 25.09 | G59: 103.14 | H59: 0.01 | I59: 0.81 | J59: 0.00 | K59: 0.07 | L59: 12.76 | M59: 3.96 | N59: 4.63 | O59: 0.86 | P59: №390 СБ дошк 2016
A60: Хлеб пшеничный | C60: 25 | D60: 1.90 | E60: 0.20 | F60: 12.30 | G60: 58.75 | H60: 0.03 | K60: 0.28 | L60: 5.00 | M60: 16.25 | N60: 3.50 | O60: 0.28 | P60: табл 6 стр 134,Дели + 2012
A61: Хлеб ржаной | C61: 45 | D61: 2.97 | E61: 0.54 | F61: 17.82 | G61: 89.10 | H61: 0.08 | K61: 0.63 | L61: 13.05 | M61: 67.50 | N61: 21.15 | O61: 1.76 | P61: табл 6 стр 144,Дели + 2012
A62: Итого: | C62: 716 | D62: 19.10 | E62: 22.01 | F62: 91.36 | G62: 657.23 | H62: =SUM(H54:H61) -> 0.27 | I62: =SUM(I54:I61) -> 12.84 | J62: 55.00 | K62: 5.08 | L62: 138.64 | M62: 266.67 | N62: 76.89 | O62: 5.68
B63: ПОЛДНИК
A64: Кисломолочный напиток | C64: 180 | D64: 5.22 | E64: 4.50 | F64: 7.56 | G64: 91.80 | H64: 0.06 | I64: 0.54 | J64: 36.00 | K64: 0.00 | L64: 223.20 | M64: 165.60 | N64: 25.20 | O64: 0.18 | P64: №420 СБ дошк 2016
A65: (Кефир,ряженка,катык,напиток ацидофильный/йогурт) | B65: кисломолочный напиток
A66: Булочка дорожная | C66: 50 | D66: 3.39 | E66: 4.90 | F66: 30.10 | G66: 165.50 | H66: 0.06 | K66: 2.55 | L66: 9.30 | M66: 32.10 | N66: 13.10 | O66: 0.60 | P66: №453 сб дошк2016
A67: Итого: | C67: 230 | D67: 8.41 | E67: 9.40 | F67: 37.66 | G67: 257.30 | H67: =H64+H66 -> 0.12 | I67: =I64+I66 -> 0.54 | J67: 36.00 | K67: 2.55 | L67: 232.50 | M67: 197.70 | N67: 38.30 | O67: 0.78
B68: УЖИН
A69: Запеканка творожная с ягодным соусом | C69: 120/30 | D69: 13.34 | E69: 14.53 | F69: 49.10 | G69: 418.50 | H69: 0.08 | I69: 2.14 | J69: 89.04 | K69: 0.70 | L69: 192.42 | M69: 265.35 | N69: 37.00 | O69: 1.07 | P69: №251, сбдошк 2016
A70: Чай с сахаром и лимоном | C70: 180/6/7 | D70: 0.13 | E70: 0.03 | F70: 6.23 | G70: 26.48 | H70: 0.00 | I70: 2.83 | J70: 0.00 | K70: 0.01 | L70: 12.57 | M70: 4.06 | N70: 2.10 | O70: 0.27 | P70: № 393 Дели2010
A71: Итого: | C71: 343 | D71: 13.47 | E71: 14.56 | F71: 62.98 | G71: 444.98 | H71: =H69+H70 -> 0.08 | I71: 4.97 | J71: 89.04 | K71: 0.72 | L71: 204.98 | M71: 269.41 | N71: 39.10 | O71: 1.34
A72: ВСЕГО: | C72: =C49+C53+C62+C67+C71 -> 1878.00 | D72: 55.13 | E72: 61.61 | F72: 260.49 | G72: 1831.90 | H72: =H49+H53+H62+H67+H71 -> 0.68 | I72: 23.41 | J72: 244.48 | K72: 9.95 | L72: 802.12 | M72: 1031.52 | N72: 213.26 | O72: 13.21
A74: День 3 - ий
A75: Наименование блюд и | C75: Масса | D75: Пищевые вещества | G75: Энергетическая | H75: В1,мг | I75: С,мг | J75: A,мкг | K75: Е,мг | L75: Ca | M75: P | N75: Mg | O75: Fe | P75: Сборник
A76: продуктов | C76: порции | G76: ценность | P76: рецептур
D77: белки | E77: жиры | F77: угл-ды | G77: Ккал
B78: ЗАВТРАК
A79: Каша кукурузная молочная с маслом сливочным | C79: 180/5 | D79: 6.83 | E79: 7.09 | F79: 45.65 | G79: 274.16 | H79: 0.08 | I79: 0.86 | J79: 33.30 | K79: 0.32 | L79: 123.66 | M79: 137.05 | N79: 28.45 | O79: 1.50 | P79: ТТК №2Д
A80: Чай с молоком,сахаром | C80: 180/6 | D80: 2.67 | E80: 2.27 | F80: 10.34 | G80: 72.70 | H80: 0.04 | I80: 1.20 | J80: 18.00 | K80: 0.00 | L80: 117.77 | M80: 83.52 | N80: 13.86 | O80: 0.32 | P80: № 413 сб дошк 2016
A81: Бутерброд с маслом сливочным | C81: 30/5 | D81: 2.29 | E81: 4.50 | F81: 15.49 | G81: 111.60 | H81: 0.03 | I81: 0.00 | J81: 20.00 | K81: 0.56 | L81: 6.90 | M81: 21.00 | N81: 3.90 | O81: 0.37 | P81: №1 Дели2010
A82: Итого: | C82: 406 | D82: 11.30 | E82: 12.58 | F82: 54.10 | G82: 368.46 | H82: =SUM(H78:H81) -> 0.15 | I82: =SUM(I78:I81) -> 2.06 | J82: 71.30 | K82: 0.88 | L82: 248.33 | M82: 241.57 | N82: 46.21 | O82: 2.19
B83: 2 - ой ЗАВТРАК
A84: Фрукты свежие | C84: 100 | D84: 0.40 | E84: 0.40 | F84: 9.80 | G84: 47.00 | H84: 0.03 | I84: 10.00 | K84: 0.20 | L84: 16.00 | M84: 11.00 | N84: 9.00 | O84: 2.20 | P84: №386 СБ
A85: (яблоки,или апельсин, или банан,или мандарин ) | P85: дошк.2016
A86: Итого: | C86: 100 | D86: 0.40 | E86: 0.40 | F86: 9.80 | G86: 47.00 | H86: =H84 -> 0.03 | I86: 10.00 | J86: 0.00 | K86: 0.20 | L86: 16.00 | M86: 11.00 | N86: 9.00 | O86: 2.20
B87: ОБЕД
A88: Салат из кукурузы к/с | C88: 60 | D88: 1.73 | E88: 3.71 | F88: 4.82 | G88: 59.58 | H88: 0.06 | I88: 5.58 | J88: 0.00 | K88: 1.70 | L88: 11.20 | M88: 34.67 | N88: 11.72 | O88: 0.39 | P88: №12 сб дошк 2016
A89: Суп картофельный с пшенной крупой на мясном бульоне,с мясом | C89: 180/10 | D89: 4.22 | E89: 2.33 | F89: 8.77 | G89: 76.57 | H89: 0.07 | I89: 5.99 | J89: 0.00 | K89: 0.93 | L89: 20.51 | M89: 63.22 | N89: 19.36 | O89: 0.86 | P89: №86 сб дошк 2016
A90: Плов из отварной говядины | C90: 200 | D90: 18.40 | E90: 19.11 | F90: 32.51 | G90: 396.00 | H90: 0.05 | I90: 0.35 | K90: 3.87 | L90: 28.92 | M90: 207.57 | N90: 42.67 | O90: 2.87 | P90: №443,сбшк2004
A91: Напиток из свежемороженных фруктов | C91: 180 | D91: 0.60 | E91: 0.08 | F91: 28.81 | G91: 119.52 | H91: 0.01 | I91: 0.65 | K91: 0.46 | L91: 29.23 | M91: 21.10 | N91: 15.71 | O91: 0.63 | P91: №392 Сб дошк 2016
A92: Хлеб пшеничный | C92: 20 | D92: 1.52 | E92: 0.16 | F92: 9.84 | G92: 47 | H92: 0.022 | K92: 0.22 | L92: 4 | M92: 13 | N92: 2.8 | O92: 0.22 | P92: табл 6 стр 134,Дели + 2012
A93: Хлеб ржаной | C93: 45 | D93: 2.97 | E93: 0.54 | F93: 17.82 | G93: 89.10 | H93: 0.08 | K93: 0.63 | L93: 13.05 | M93: 67.50 | N93: 21.15 | O93: 1.76 | P93: табл 6 стр 144,Дели + 2012
A94: Итого: | C94: 695 | D94: 19.13 | E94: 21.68 | F94: 92.73 | G94: 651.67 | H94: =SUM(H87:H93) -> 0.30 | I94: =SUM(I87:I93) -> 12.57 | J94: 0.00 | K94: 7.80 | L94: 106.91 | M94: 407.06 | N94: 113.41 | O94: 6.73
B95: ПОЛДНИК
A96: Молоко кипяченое | C96: 180 | D96: 5.22 | E96: 4.50 | F96: 8.64 | G96: 96.30 | H96: 0.07 | I96: 2.34 | J96: 36.00 | K96: 0.00 | L96: 216.00 | M96: 162.00 | N96: 25.20 | O96: 0.18 | P96: №419 СБ дошк 2016
A97: Кондитерские изделия | B97: печенье | C97: 20 | D97: 1.28 | E97: 3.36 | F97: 13.70 | G97: 90.20 | H97: 0.02 | I97: 0.00 | J97: 24.00 | K97: 0.20 | L97: 4.60 | M97: 13.00 | N97: 2.00 | O97: 0.16 | P97: табл 6 стр 136,Ддели +,2012
A98: Итого: | C98: 200 | D98: 7.70 | E98: 8.65 | F98: 37.20 | G98: 276.70 | H98: =SUM(H95:H97) -> 0.09 | I98: 2.34 | J98: 60.00 | K98: 0.20 | L98: 220.60 | M98: 175.00 | N98: 27.20 | O98: 0.34
B99: УЖИН
A100: Фрикадельки рыбные отварные | C100: 80 | D100: 13.41 | E100: 2.82 | F100: 1.14 | G100: 88.00 | H100: 0.08 | I100: 1.33 | J100: 40.08 | K100: 0.66 | L100: 100.38 | M100: 182.94 | N100: 48.00 | O100: 0.93 | P100: №279 сб дошк 2016
A101: Картофель тушёный с овощами в соусе | C101: 140 | D101: 3.05 | E101: 11.75 | F101: 21.15 | G101: 201.60 | H101: 0.15 | I101: 18.64 | J101: 23.52 | K101: 3.68 | L101: 30.39 | M101: 83.13 | N101: 29.37 | O101: 1.12 | P101: №144 сбшк 2016
A102: Напиток из шиповника | C102: 180/6 | D102: 0.61 | E102: 0.25 | F102: 18.68 | G102: 79.38 | H102: 0.01 | I102: 90.00 | J102: 0.00 | K102: 0.68 | L102: 19.21 | M102: 3.10 | N102: 3.10 | O102: 0.57 | P102: №399 сб дошк 2016
A103: Хлеб пшеничный | C103: 30 | D103: 2.28 | E103: 0.24 | F103: 14.76 | G103: 70.50 | H103: 0.03 | K103: 0.33 | L103: 6.00 | M103: 19.50 | N103: 4.20 | O103: 0.33 | P103: табл 6 стр 134,Дели + 2012
A104: Итого: | C104: 645 | D104: 14.02 | E104: 15.06 | F104: 62.95 | G104: 439.48 | H104: =SUM(H99:H103) -> 0.27 | I104: =SUM(I99:I103) -> 109.96 | J104: 63.60 | K104: 5.35 | L104: 155.97 | M104: 288.67 | N104: 84.66 | O104: 2.95
A105: ВСЕГО: | C105: =C82+C86+C94+C104+C98 -> 2046 | D105: 52.55 | E105: 58.37 | F105: 256.78 | G105: 1783.31 | H105: =H82+H86+H94+H104+H98 -> 0.85 | I105: 136.94 | J105: 194.90 | K105: 14.43 | L105: 747.80 | M105: 1123.29 | N105: 280.48 | O105: 14.41
A106: День 4 - ый
A107: Наименование блюд и | C107: Масса | D107: Пищевые вещества | G107: Энергетическая | H107: В1,мг | I107: С,мг | J107: A,мкг | K107: Е,мг | L107: Ca | M107: P | N107: Mg | O107: Fe | P107: Сборник
A108: продуктов | C108: порции | G108: ценность | P108: рецептур
D109: белки | E109: жиры | F109: угл-ды | G109: Ккал
B110: ЗАВТРАК
A111: Каша ячневая молочная с маслом сливочным | C111: 180/3 | D111: 6.54 | E111: 6.15 | F111: 35.21 | G111: 223.41 | H111: 0.11 | I111: 0.86 | J111: 28.72 | K111: 0.47 | L111: 144.60 | M111: 215.81 | N111: 32.81 | O111: 0.84 | P111: ТТК №10Д
A112: Кофейный напиток с молоком | C112: 180/6 | D112: 2.85 | E112: 2.41 | F112: 14.35 | G112: 90.54 | H112: 0.04 | I112: 1.17 | J112: 18.00 | K112: 0.00 | L112: 113.20 | M112: 81.00 | N112: 12.60 | O112: 0.12 | P112: №395 Дели2010
A113: Бутерброд с маслом сливочным, с повидлом | C113: 30/5/10 | D113: 2.35 | E113: 4.52 | F113: 17.39 | G113: 119.80 | H113: 0.03 | I113: 0.16 | J113: 20.00 | K113: 0.58 | L113: 8.10 | M113: 22.70 | N113: 4.60 | O113: 0.50
A114: Итого: | C114: 414 | D114: 11.24 | E114: 12.08 | F114: 54.80 | G114: 377.80 | H114: =SUM(H110:H113) -> 0.18 | I114: =SUM(I110:I113) -> 2.19 | J114: 66.72 | K114: 1.05 | L114: 265.90 | M114: 319.51 | N114: 50.01 | O114: 1.46
B115: 2 - ой ЗАВТРАК
A116: Сок | C116: 180 | D116: 2.83 | E116: 3.15 | F116: 13.70 | G116: 94.40 | H116: 0.02 | I116: 3.60 | J116: 0.00 | K116: 0.18 | L116: 12.60 | M116: 12.60 | N116: 7.20 | O116: 2.52
A118: Итого: | C118: 180 | D118: 2.83 | E118: 3.15 | F118: 13.70 | G118: 94.40 | H118: =H116 -> 0.02 | I118: 3.60 | J118: 0.00 | K118: 0.18 | L118: 12.60 | M118: 12.60 | N118: 7.20 | O118: 2.52
B119: ОБЕД
A120: Салат из свеклы с яблоками | C120: 60 | D120: 0.65 | E120: 3.65 | F120: 6.72 | G120: 62.34 | H120: 0.01 | I120: 3.86 | J120: 0.00 | K120: 6.36 | L120: 17.56 | M120: 19.08 | N120: 10.10 | O120: 0.89 | P120: №36, сб дошк2016
A121: Суп картофельный гороховый на курином бульоне с мясом птицы | C121: 180/10 | D121: 6.24 | E121: 5.11 | F121: 12.00 | G121: 127.20 | H121: 0.16 | I121: 4.19 | J121: 0.00 | K121: 1.75 | L121: 30.73 | M121: 63.43 | N121: 25.61 | O121: 1.48 | P121: №87, сб дошк2016
A122: Птица, тушеная в соусе с овощами | C122: 200 | D122: 17.79 | E122: 13.83 | F122: 17.20 | G122: 264.00 | H122: 0.19 | I122: 11.61 | J122: 50.00 | K122: 1.51 | L122: 78.72 | M122: 186.61 | N122: 44.61 | O122: 4.05 | P122: №319 Сб дошк 2016
A123: Компот из изюма | C123: 180 | D123: 0.31 | E123: 0.07 | F123: 26.87 | G123: 109.98 | H123: 0.02 | K123: 0.07 | L123: 18.29 | M123: 17.42 | N123: 7.31 | O123: 0.41 | P123: №394 СБ дошк 2016
A124: Хлеб пшеничный | C124: 25 | D124: 1.90 | E124: 0.20 | F124: 12.30 | G124: 58.75 | H124: 0.03 | K124: 0.28 | L124: 5.00 | M124: 16.25 | N124: 3.50 | O124: 0.28 | P124: табл 6 стр 134,Дели + 2012
A125: Хлеб ржаной | C125: 45 | D125: 2.97 | E125: 0.54 | F125: 17.82 | G125: 89.10 | H125: 0.08 | K125: 0.63 | L125: 13.05 | M125: 67.50 | N125: 21.15 | O125: 1.76 | P125: табл 6 стр 144,Дели + 2012
A126: Итого: | C126: 700 | D126: 19.74 | E126: 22.04 | F126: 92.91 | G126: 652.62 | H126: =SUM(H119:H125) -> 0.49 | I126: =SUM(I119:I125) -> 19.67 | J126: 50.00 | K126: 10.59 | L126: 163.34 | M126: 370.30 | N126: 112.28 | O126: 8.85
B127: ПОЛДНИК
A128: Кисломолочный напиток | C128: 180 | D128: 5.40 | E128: 1.80 | F128: 7.20 | G128: 66.60 | H128: 0.07 | I128: 1.44 | J128: 36.00 | K128: 0.00 | L128: 216.00 | M128: 176.40 | N128: 27.00 | O128: 0.18 | P128: №420 СБ дошк 2016
A129: (Кефир,ряженка,катык,напиток ацидофильный/йогурт) | B129: кисломолочный напиток
A130: Кондитерские изделия | B130: печенье | C130: 20 | D130: 1.28 | E130: 3.36 | F130: 13.70 | G130: 90.20 | H130: 0.02 | I130: 0.00 | J130: 24.00 | K130: 0.20 | L130: 4.60 | M130: 13.00 | N130: 2.00 | O130: 0.16 | P130: табл 6 стр 136,Ддели +,2012
A131: Итого: | C131: 200 | D131: 7.69 | E131: 8.55 | F131: 37.20 | G131: 256.50 | H131: =SUM(H127:H130) -> 0.09 | I131: 1.44 | J131: 60.00 | K131: 0.20 | L131: 220.60 | M131: 189.40 | N131: 29.00 | O131: 0.34
B132: УЖИН
A133: Омлет с сыром | C133: 150 | D133: 10.93 | E133: 15.43 | F133: 41.90 | G133: 347.50 | H133: 0.10 | I133: 0.33 | J133: 363.00 | K133: 0.83 | L133: 261.50 | M133: 312.25 | N133: 21.83 | O133: 2.75 | P133: №229,сб дошк2016
A134: Чай с сахаром | C134: 180/6 | D134: 0.06 | E134: 0.02 | F134: 6.02 | G134: 24.10 | H134: 0.00 | I134: 0.03 | J134: 0.00 | K134: 0.00 | L134: 9.77 | M134: 2.52 | N134: 1.26 | O134: 0.23 | P134: № 392 Дели 2010
A135: Хлеб пшеничный | C135: 30 | D135: 2.28 | E135: 0.24 | F135: 14.76 | G135: 70.50 | H135: 0.03 | K135: 0.33 | L135: 6.00 | M135: 19.50 | N135: 4.20 | O135: 0.33 | P135: табл 6 стр 134,Дели + 2012
A136: Итого: | C136: 366 | D136: 13.27 | E136: 15.69 | F136: 62.68 | G136: 442.10 | H136: =SUM(H132:H135) -> 0.13 | I136: =SUM(I132:I135) -> 0.35 | J136: 363.00 | K136: 1.16 | L136: 277.27 | M136: 334.27 | N136: 27.29 | O136: 3.31
A137: ВСЕГО: | C137: =C114+C118+C126+C136+C131 -> 1860 | D137: 54.77 | E137: 61.51 | F137: 261.29 | G137: 1823.42 | H137: =H114+H118+H126+H136+H131 -> 0.91 | I137: 27.26 | J137: 539.72 | K137: 13.18 | L137: 939.71 | M137: 1226.09 | N137: 225.78 | O137: 16.48
A138: День 5 - ый
A139: Наименование блюд и | C139: Масса | D139: Пищевые вещества | G139: Энергетическая | H139: В1,мг | I139: С,мг | J139: A,мкг | K139: Е,мг | L139: Ca | M139: P | N139: Mg | O139: Fe | P139: Сборник
A140: продуктов | C140: порции | G140: ценность | P140: рецептур
D141: белки | E141: жиры | F141: угл-ды | G141: Ккал
B142: ЗАВТРАК
A143: Суп молочный с геркулесовой крупой | C143: 200 | D143: 2.97 | E143: 3.57 | F143: 6.14 | G143: 71.20 | H143: 0.04 | I143: 0.66 | J143: 26.40 | K143: 0.02 | L143: 127.60 | M143: 90.94 | N143: 14.14 | O143: 0.12 | P143: №101, сбшк2016
A144: Какао с молоком | C144: 180 | D144: 3.67 | E144: 3.19 | F144: 15.82 | G144: 106.74 | H144: 0.05 | I144: 1.43 | J144: 21.96 | K144: 0.00 | L144: 137.00 | M144: 112.10 | N144: 19.21 | O144: 0.43 | P144: №397 Дели2010
A145: Бутерброд с сыром, маслом сливочным | C145: 30/5/5 | D145: 3.61 | E145: 5.83 | F145: 15.49 | G145: 128.77 | H145: 0.03 | I145: 0.04 | J145: 30.50 | K145: 0.58 | L145: 56.90 | M145: 51.00 | N145: 6.65 | O145: 0.41 | P145: №3 сб дошк2016
A146: Итого: | C146: 420 | D146: 10.27 | E146: 12.59 | F146: 53.27 | G146: 377.91 | H146: =SUM(H142:H145) -> 0.12 | I146: =SUM(I142:I145) -> 2.12 | J146: 78.86 | K146: 0.60 | L146: 321.50 | M146: 254.04 | N146: 40.00 | O146: 0.96
B147: 2 - ой ЗАВТРАК
A148: Фрукты свежие | C148: 100 | D148: 0.40 | E148: 0.40 | F148: 9.80 | G148: 47.00 | H148: 0.03 | I148: 10.00 | K148: 0.20 | L148: 16.00 | M148: 11.00 | N148: 9.00 | O148: 2.20 | P148: №386 СБ
A149: (яблоки,или апельсин, или банан,или мандарин ) | P149: дошк.2016
A150: Итого: | C150: 100 | D150: 0.40 | E150: 0.40 | F150: 9.80 | G150: 47.00 | H150: =H148 -> 0.03 | I150: 10.00 | J150: 0.00 | K150: 0.20 | L150: 16.00 | M150: 11.00 | N150: 9.00 | O150: 2.20
B151: ОБЕД
A152: Салат из квашенной капусты | C152: 50 | D152: 0.85 | E152: 2.50 | F152: 4.23 | G152: 42.85 | H152: 0.01 | I152: 9.91 | J152: 0.00 | K152: 7.70 | L152: 231.99 | M152: 160.67 | N152: 82.33 | O152: 3.28 | P152: №47 СБ дошк 2016
A153: Рассольник домашний на курином бульоне,с куриными фрикадельками, со сметаной | C153: 180/11/5 | D153: 3.45 | E153: 6.30 | F153: 10.40 | G153: 119.17 | H153: 0.08 | I153: 9.61 | J153: 11.22 | K153: 1.76 | L153: 39.93 | M153: 64.70 | N153: 22.64 | O153: 0.93 | P153: №81,сб дошк2016
A154: Запеканка картофельная с мясом птицы со сметанным соусом | C154: 150/30 | D154: 11.56 | E154: 9.74 | F154: 27.30 | G154: 243.48 | H154: 0.11 | I154: 22.32 | J154: 27.64 | K154: 0.07 | L154: 30.94 | M154: 136.69 | N154: 38.58 | O154: 1.79 | P154: №308 СБ дошк 2016
A155: Кисель | C155: 180 | D155: 0.54 | E155: 0.09 | F155: 27.18 | G155: 111.24 | H155: 0.00 | I155: 0.99 | L155: 14.13 | M155: 14.67 | N155: 3.02 | O155: 0.33 | P155: № 648, сб шк2004
A156: Хлеб ржаной | C156: 45 | D156: 2.97 | E156: 0.54 | F156: 17.82 | G156: 89.10 | H156: 0.08 | K156: 0.63 | L156: 13.05 | M156: 67.50 | N156: 21.15 | O156: 1.76 | P156: табл 6 стр 144,Дели + 2012
A157: Итого: | C157: 661 | D157: 19.37 | E157: 20.25 | F157: 86.92 | G157: 605.84 | H157: =SUM(H151:H156) -> 0.27 | I157: =SUM(I151:I156) -> 42.83 | J157: 38.86 | K157: 10.16 | L157: 330.04 | M157: 444.24 | N157: 167.73 | O157: 8.09
B158: ПОЛДНИК
A159: Молоко кипяченое | C159: 180 | D159: 5.22 | E159: 4.50 | F159: 8.64 | G159: 96.30 | H159: 0.07 | I159: 2.34 | J159: 36.00 | K159: 0.00 | L159: 216.00 | M159: 162.00 | N159: 25.20 | O159: 0.18 | P159: №419 СБ дошк 2016
A160: (молоко)
A161: Кондитерское изделие | B161: печенье | C161: 20 | D161: 1.28 | E161: 3.36 | F161: 13.70 | G161: 90.20 | H161: 0.02 | I161: 0.00 | J161: 24.00 | K161: 0.20 | L161: 4.60 | M161: 13.00 | N161: 2.00 | O161: 0.16
A162: Итого: | C162: 200 | D162: 7.70 | E162: 8.55 | F162: 37.20 | G162: 256.56 | H162: =SUM(H158:H161) -> 0.09 | I162: 2.34 | J162: 60.00 | K162: 0.20 | L162: 220.60 | M162: 175.00 | N162: 27.20 | O162: 0.34
A163: Эч-почмак с говядиной | C163: 100 | D163: 13.20 | E163: 14.93 | F163: 57.30 | G163: 414.29 | P163: Согласно сборника рецептур блюд и кулинарных изделий татарской кухни
A164: Чай с сахаром и лимоном | C164: 180/6/7 | D164: 0.13 | E164: 0.03 | F164: 6.23 | G164: 26.48 | H164: 0.00 | I164: 2.83 | J164: 0.00 | K164: 0.01 | L164: 12.57 | M164: 4.06 | N164: 2.10 | O164: 0.27 | P164: № 393 Дели2010
A165: Итого: | C165: 293 | D165: 13.33 | E165: 14.96 | F165: 63.53 | G165: 440.77 | H165: =SUM(H163:H164) -> 0.00 | I165: 2.83 | J165: 0.00 | K165: 0.01 | L165: 12.57 | M165: 4.06 | N165: 2.10 | O165: 0.27
A166: ВСЕГО: | C166: =C146+C150+C157+C165+C162 -> 1674.00 | D166: 51.07 | E166: 56.75 | F166: 250.73 | G166: 1728.08 | H166: =H146+H150+H157+H165+H162 -> 0.52 | I166: 60.12 | J166: 177.72 | K166: 11.17 | L166: 900.70 | M166: 888.35 | N166: 246.03 | O166: 11.85
A167: День 6 - ый
A168: Наименование блюд и | C168: Масса | D168: Пищевые вещества | G168: Энергетическая | H168: В1,мг | I168: С,мг | J168: A,мкг | K168: Е,мг | L168: Ca | M168: P | N168: Mg | O168: Fe | P168: Сборник
A169: продуктов | C169: порции | G169: ценность | P169: рецептур
D170: белки | E170: жиры | F170: угл-ды | G170: Ккал
B171: ЗАВТРАК
A172: Каша пшенная молочная с маслом сливочным | C172: 180/3 | D172: 5.04 | E172: 8.18 | F172: 28.77 | G172: 208.76 | H172: 0.14 | K172: 0.23 | L172: 13.88 | M172: 103.46 | N172: 35.87 | O172: 1.18 | P172: ТТК № 6Д
A173: Чай с молоком,сахаром | C173: 180/6 | D173: 2.67 | E173: 2.27 | F173: 10.34 | G173: 72.70 | H173: 0.04 | I173: 1.20 | J173: 18.00 | K173: 0.00 | L173: 117.77 | M173: 83.52 | N173: 13.86 | O173: 0.32 | P173: № 413 сб дошк 2016
A174: Бутерброд с маслом сливочным | C174: 30/5 | D174: 2.29 | E174: 4.50 | F174: 15.49 | G174: 111.60 | H174: 0.03 | I174: 0.00 | J174: 20.00 | K174: 0.56 | L174: 6.90 | M174: 21.00 | N174: 3.90 | O174: 0.37 | P174: №1 Дели2010
A175: Итого: | C175: 404 | D175: 10.31 | E175: 12.58 | F175: 54.60 | G175: 373.93 | H175: =H172+H173+H174 -> 0.21 | I175: =I172+I173+I174 -> 1.20 | J175: 38.00 | K175: 0.79 | L175: 138.54 | M175: 207.98 | N175: 53.63 | O175: 1.87
B176: 2 - ой ЗАВТРАК
A177: Сок | C177: 180 | D177: 2.83 | E177: 3.15 | F177: 13.70 | G177: 94.40 | H177: 0.02 | I177: 3.60 | J177: 0.00 | K177: 0.18 | L177: 12.60 | M177: 12.60 | N177: 7.20 | O177: 2.52
A178: Итого: | C178: 180 | D178: 2.83 | E178: 3.15 | F178: 13.70 | G178: 94.40 | H178: =H177 -> 0.02 | I178: 3.60 | J178: 0.00 | K178: 0.18 | L178: 12.60 | M178: 12.60 | N178: 7.20 | O178: 2.52
B179: ОБЕД
A180: Салат из зеленого горошка к/с | C180: 50 | D180: 1.49 | E180: 2.59 | F180: 3.13 | G180: 41.80 | H180: 0.05 | I180: 5.50 | K180: 1.20 | L180: 10.73 | M180: 29.98 | N180: 10.40 | O180: 0.34 | P180: №10 СБ дошк 2016
A181: Суп из овощей на курином бульоне,с куриными фрикадельками,со сметаной | C181: 180/11/7 | D181: 3.14 | E181: 6.52 | F181: 7.92 | G181: 108.55 | H181: 0.06 | I181: 7.64 | J181: 11.22 | K181: 1.72 | L181: 36.41 | M181: 52.79 | N181: 17.37 | O181: 0.72 | P181: ТТК 535 23,12,2020
A182: Тефтели куриные с рисом в сметанно-томатном соусе | C182: 50/25 | D182: 7.26 | E182: 7.86 | F182: 5.74 | G182: 123.03 | H182: 0.03 | I182: 0.84 | J182: 28.35 | K182: 0.18 | L182: 30.32 | M182: 59.40 | N182: 9.66 | O182: 0.66 | P182: ТТК 698 от 09.04.2021
A183: Вермишель отварная | C183: 130 | D183: 4.90 | E183: 0.58 | F183: 27.66 | G183: 135.46 | H183: 0.05 | K183: 0.67 | L183: 9.70 | M183: 32.21 | N183: 7.47 | O183: 0.74 | P183: №219 Сб дошк.2016
A184: Напиток из сухофруктов | C184: 180 | D184: 0.60 | E184: 0.08 | F184: 28.81 | G184: 119.52 | H184: 0.01 | I184: 0.65 | J184: 0.00 | K184: 0.46 | L184: 29.23 | M184: 21.10 | N184: 15.71 | O184: 0.63 | P184: №394 Сб дошк 2016
A185: Хлеб ржаной | C185: 45 | D185: 2.97 | E185: 0.54 | F185: 17.82 | G185: 89.10 | H185: 0.0765 | K185: 0.63 | L185: 13.05 | M185: 67.5 | N185: 21.15 | O185: 1.755 | P185: табл 6 стр 144,Дели + 2012
A186: Итого: | C186: 678 | D186: 19.77 | E186: 20.42 | F186: 91.08 | G186: 617.46 | H186: =SUM(H179:H185) -> 0.28 | I186: =SUM(I179:I185) -> 14.63 | J186: 39.57 | K186: 4.87 | L186: 129.43 | M186: 262.97 | N186: 81.76 | O186: =SUM(O179:O185) -> 4.84
B187: ПОЛДНИК
A188: Кисломолочный напиток | C188: 180 | D188: 2.58 | E188: 3.10 | F188: 13.60 | G188: 91.89 | H188: 0.05 | I188: 1.44 | J188: 36.00 | K188: 0.00 | L188: 212.40 | M188: 172.80 | N188: 28.80 | O188: 0.18 | P188: №420 Сб дошк 2016
A189: (кефир,ряженка,катык, )
A190: Булочка с сахаром | C190: 50 | D190: 5.90 | E190: 6.20 | F190: 24.46 | G190: 170.67 | H190: 0.07 | I190: 0.15 | J190: 4.58 | K190: 1.05 | L190: 10.08 | M190: 37.61 | N190: 6.73 | O190: 0.49 | P190: №442 СБ шк 2017
A191: Итого: | C191: 230 | D191: 8.48 | E191: 9.30 | F191: 38.06 | G191: 262.56 | H191: 1.59 | I191: =SUM(I187:I190) -> 1.59 | J191: 40.58 | K191: 1.05 | L191: 222.48 | M191: 210.41 | N191: 35.53 | O191: 0.67
B192: УЖИН
A193: Запеканка творожная с ягодным соусом | C193: 120/30 | D193: 13.34 | E193: 14.53 | F193: 49.10 | G193: 418.50 | H193: 0.07 | I193: 0.56 | J193: 88.80 | K193: 0.01 | L193: 180.23 | M193: 258.48 | N193: 29.89 | O193: 1.12 | P193: №251, сбдошк 2016
A194: Напиток из шиповника | C194: 180/6 | D194: 0.61 | E194: 0.25 | F194: 18.68 | G194: 79.38 | H194: 0.0108 | I194: 90 | J194: 0 | K194: 0.684 | L194: 19.206 | M194: 3.096 | N194: 3.096 | O194: 0.5706 | P194: №399 сб дошк 2016
A195: Итого: | C195: 336 | D195: 13.95 | E195: 14.78 | F195: 67.78 | G195: 472.45 | H195: =SUM(H192:H194) -> 0.08 | I195: =SUM(I192:I194) -> 90.56 | J195: 88.80 | K195: 0.70 | L195: 199.44 | M195: 261.57 | N195: 32.99 | O195: 1.69
A196: ВСЕГО: | C196: =C175+C178+C186+C195+C191 -> 1828 | D196: 55.34 | E196: 60.23 | F196: 265.22 | G196: 1820.80 | H196: =H175+H178+H186+H195+H191 -> 2.18 | I196: 111.58 | J196: 206.95 | K196: 7.58 | L196: 702.49 | M196: 955.53 | N196: 211.11 | O196: 11.60
A197: День 7- ой
A198: Наименование блюд и | C198: Масса | D198: Пищевые вещества | G198: Энергетическая | H198: В1,мг | I198: С,мг | J198: A,мкг | K198: Е,мг | L198: Ca | M198: P | N198: Mg | O198: Fe | P198: Сборник
A199: продуктов | C199: порции | G199: ценность | P199: рецептур
D200: белки | E200: жиры | F200: угл-ды | G200: Ккал
B201: ЗАВТРАК
A202: Каша кукурузная молочная с маслом сливочным | C202: 180/5 | D202: 6.83 | E202: 7.09 | F202: 45.65 | G202: 274.16 | H202: 0.08 | I202: 0.86 | J202: 33.30 | K202: 0.32 | L202: 123.66 | M202: 137.05 | N202: 28.45 | O202: 1.50 | P202: ТТК №2Д
A203: Кофейный напиток с молоком | C203: 180 | D203: 2.85 | E203: 2.41 | F203: 14.35 | G203: 90.54 | H203: 0.04 | I203: 1.17 | J203: 18.00 | K203: 0.00 | L203: 113.20 | M203: 81.00 | N203: 12.60 | O203: 0.12 | P203: №395 Дели2010
A204: Бутерброд с маслом сливочным | C204: 30/5 | D204: 2.29 | E204: 4.50 | F204: 15.49 | G204: 111.60 | H204: 0.03 | I204: 0.00 | J204: 20.00 | K204: 0.56 | L204: 6.90 | M204: 21.00 | N204: 3.90 | O204: 0.37 | P204: №1 Дели2010
A205: Сыр порционно | C205: 10 | D205: 2.63 | E205: 2.66 | G205: 34.33 | H205: 0.00 | I205: 0.07 | J205: 21.00 | K205: 0.04 | L205: 100.00 | M205: 60.00 | N205: 5.50 | O205: 0.07 | P205: №15 сб шк2017
... 143 more rows
